Workbook

Sheet Important Info
B2: INSTRUCTIONS FOR BELL SCHEDULE CALCULATOR
B4: 1 | C4: Select a worksheet to complete. If your school has the same bell schedule every day, complete "Same Schedule Every Day" work sheet. If your school has any type of block schedule, complete the "Block Schedule" worksheet.
B5: 2 | C5: Complete the heading area on the worksheet you selected.
B6: 3 | C6: Begin completing the daily schedule by inputting Type of Time. Enter class time as "1st Period", "2nd Period", "Seminar", "Advocacy", etc. Enter lunch time as "Lunch". Enter passing time as "Passing".
B7: 4 | C7: Enter Start Time and End Time.
B8: 5 | C8: Type of time must remain consistent across the rows. In other words, if the first row is 1st period, then it needs to say 1st period or be blank throughout the worksheet, etc. This allows the formulas to calculate correctly. See example worksheets.
B9: 6 | C9: When the school's bell schedule is the same on certain days, you can copy the schedule into each day.
B10: 7 | C10: The Daily Average Minutes table will automatically calculate daily average minutes per class period and total daily average minutes.
B12: IMPORTANT INFORMATION
B14: • | C14: Orange highlighted cells indicate an area where the user should input data.
B15: • | C15: Blue highlighted cells indicate an area where the spreadsheet contains formulas and access is restricted.
B16: • | C16: We have included 3 example worksheets reflecting different types of block schedules. They also indicate how to complete the daily schedule fields.
B17: • | C17: Lunch and one passing period (either before or after lunch) may not be counted. This will calculate automatically.
B18: • | C18: If your school has a period which is a combination of class time and lunch, those times need to be separated on the calculator so that the formula will calculate correctly.
B19: • | C19: No passing time is allowed to the first class of the day or from the last class of the day.
B20: • | C20: When calculating an individual student's minutes, passing time from a class period to a period not enrolled is not counted. Passing time from a period where there is no enrolled class is not counted.
B21: • | C21: Cutting data will cause formula errors in protected cells so we have disabled the cut function in the worksheet. Instead, copy and paste, then go back to original cell and delete data.
B23: EXAMPLES - BELL SCHEDULE CALCULATOR
B25: Example 1 | C25: Same schedule every week with changes one day per week
B26: Example 2 | C26: Rotating every other day schedule
B27: Example 3 | C27: Modified block schedule
A31: Bell Schedule Calculator Updated 6/29/23 Kansas leads the world in the success of each student.
E118: Kansas State Department of Education
E119: Fiscal Auditing
E120: 785-296-4976 | U120: ESL Contact Minutes Calculator
E121: https://www.ksde.org/Agency/Fiscal-and-Administrative-Services/Fiscal-Auditing | U121: Updated 6/18/18

Sheet Same Schedule Every Day
A2: Bell Schedule Calculator
A3: Same Schedule Every Day
A9: School Year | I9: District | U9: Building
H16: Every Day
H17: Type | I17: Start | J17: End
H18: of Time | I18: Time | J18: Time | M18: Min | N18: District Notes
K19: =COUNTIF(H18,"="&"Lunch") -> 0 | L19: =COUNTIF(M17,">"&"00") -> 0 | M19: =IF(OR(H19="Lunch",H19="Recess",AND(K19=1,L19=1,H19="Passing")), 0, IF(I19>J19,(J19+0.5)-I19,J19-I19)) -> 0
K20: 0 | L20: 0 | M20: 0
K21: =COUNTIF(H20,"="&"Lunch") -> 0 | L21: =COUNTIF(M19,">"&"00") -> 0 | M21: =IF(OR(H21="Lunch",H21="Recess",AND(K21=1,L21=1,H21="Passing")), 0, IF(I21>J21,(J21+0.5)-I21,J21-I21)) -> 0
K22: =COUNTIF(H21,"="&"Lunch") -> 0 | L22: =COUNTIF(M20,">"&"00") -> 0 | M22: 0
K23: =COUNTIF(H22,"="&"Lunch") -> 0 | L23: =COUNTIF(M21,">"&"00") -> 0 | M23: 0
K24: 0 | L24: =COUNTIF(M22,">"&"00") -> 0 | M24: 0
K25: 0 | L25: 0 | M25: 0
K26: 0 | L26: =COUNTIF(M24,">"&"00") -> 0 | M26: =IF(OR(H26="Lunch",H26="Recess",AND(K26=1,L26=1,H26="Passing")), 0, IF(I26>J26,(J26+0.5)-I26,J26-I26)) -> 0
K27: 0 | L27: =COUNTIF(M25,">"&"00") -> 0 | M27: =IF(OR(H27="Lunch",H27="Recess",AND(K27=1,L27=1,H27="Passing")), 0, IF(I27>J27,(J27+0.5)-I27,J27-I27)) -> 0
K28: 0 | L28: 0 | M28: 0
K29: 0 | L29: 0 | M29: 0
K30: 0 | L30: 0 | M30: 0
K31: 0 | L31: 0 | M31: 0
K32: 0 | L32: 0 | M32: 0
K33: 0 | L33: 0 | M33: 0
K34: 0 | L34: 0 | M34: 0
K35: =COUNTIF(H20,"="&"Lunch") -> 0 | L35: =COUNTIF(M19,">"&"00") -> 0 | M35: 0
K36: =COUNTIF(H35,"="&"Lunch") -> 0 | L36: =COUNTIF(M20,">"&"00") -> 0 | M36: 0
K37: 0 | L37: =COUNTIF(M35,">"&"00") -> 0 | M37: 0
K38: =COUNTIF(H37,"="&"Lunch") -> 0 | L38: =COUNTIF(M36,">"&"00") -> 0 | M38: 0
K39: 0 | L39: =COUNTIF(M37,">"&"00") -> 0 | M39: 0
K40: 0 | L40: 0 | M40: 0
K41: 0 | L41: 0 | M41: 0
K42: 0 | L42: =COUNTIF(M40,">"&"00") -> 0 | M42: =IF(OR(H42="Lunch",H42="Recess",AND(K42=1,L42=1,H42="Passing")), 0, IF(I42>J42,(J42+0.5)-I42,J42-I42)) -> 0
K43: 0 | L43: =COUNTIF(M41,">"&"00") -> 0 | M43: =IF(OR(H43="Lunch",H43="Recess",AND(K43=1,L43=1,H43="Passing")), 0, IF(I43>J43,(J43+0.5)-I43,J43-I43)) -> 0
K44: 0 | L44: 0 | M44: 0
K45: =COUNTIF(H44,"="&"Lunch") -> 0 | L45: =COUNTIF(M43,">"&"00") -> 0 | M45: =IF(OR(H45="Lunch",H45="Recess",AND(K45=1,L45=1,H45="Passing")), 0, IF(I45>J45,(J45+0.5)-I45,J45-I45)) -> 0
K46: 0 | L46: 0 | M46: 0
K47: 0 | L47: 0 | M47: 0
K48: 0 | L48: 0 | M48: 0
K49: 0 | L49: 0 | M49: 0
K50: 0 | L50: 0 | M50: 0
K51: =COUNTIF(H44,"="&"Lunch") -> 0 | L51: =COUNTIF(M43,">"&"00") -> 0 | M51: 0
K52: 0 | L52: =COUNTIF(M44,">"&"00") -> 0 | M52: 0
K53: 0 | L53: 0 | M53: 0
K54: 0 | L54: 0 | M54: 0
K55: 0 | L55: 0 | M55: 0
K56: 0 | L56: 0 | M56: 0
K57: 0 | L57: 0 | M57: 0
K58: 0 | L58: 0 | M58: 0
K59: 0 | L59: 0 | M59: 0
K60: 0 | L60: 0 | M60: 0
K61: 0 | L61: 0 | M61: 0
J62: Total Minutes | M62: =SUM(M19:M61) -> 0
A67: Notes
A100: Bell Schedule Calculator Updated 6/29/2023 Kansas leads the world in the success of each student.

Sheet Block Schedule
A2: Bell Schedule Calculator
A3: Block Schedule
C7: School Year | O7: District | AB7: Building
C10: WEEK 1
C11: Monday | I11: Tuesday | O11: Wednesday | U11: Thursday | AA11: Friday | AH11: Daily Average Minutes for Week 1 | AI11: CTE Contact Minutes
C12: Type | D12: Start | E12: End | I12: Type | J12: Start | K12: End | O12: Type | P12: Start | Q12: End | U12: Type | V12: Start | W12: End | AA12: Type | AB12: Start | AC12: End | AJ12: P-test | AK12: Period | AL12: Seq | AM12: P Num | AN12: Contact | AO12: Seminar
C13: of Time | D13: Time | E13: Time | H13: Min | I13: of Time | J13: Time | K13: Time | N13: Min | O13: of Time | P13: Time | Q13: Time | T13: Min | U13: of Time | V13: Time | W13: Time | Z13: Min | AA13: of Time | AB13: Time | AC13: Time | AF13: Min
F14: =COUNTIF(C13,"="&"Lunch") -> 0 | G14: =COUNTIF(H12,">"&"00") -> 0 | H14: =IF(OR(C14="Lunch",C14="Recess",AND(F14=1,G14=1,C14="Passing")), 0, IF(D14>E14,(E14+0.5)-D14,E14-D14)) -> 0 | L14: =COUNTIF(I13,"="&"Lunch") -> 0 | M14: =COUNTIF(N12,">"&"00") -> 0 | N14: =IF(OR(I14="Lunch",I14="Recess",AND(L14=1,M14=1,I14="Passing")), 0, IF(J14>K14,(K14+0.5)-J14,K14-J14)) -> 0 | R14: =COUNTIF(O13,"="&"Lunch") -> 0 | S14: =COUNTIF(T12,">"&"00") -> 0 | T14: =IF(OR(O14="Lunch",O14="Recess",AND(R14=1,S14=1,O14="Passing")), 0, IF(P14>Q14,(Q14+0.5)-P14,Q14-P14)) -> 0 | X14: =COUNTIF(U13,"="&"Lunch") -> 0 | Y14: =COUNTIF(Z12,">"&"00") -> 0 | Z14: =IF(OR(U14="Lunch",U14="Recess",AND(X14=1,Y14=1,U14="Passing")), 0, IF(V14>W14,(W14+0.5)-V14,W14-V14)) -> 0 | AD14: =COUNTIF(AA13,"="&"Lunch") -> 0 | AE14: =COUNTIF(AF12,">"&"00") -> 0 | AF14: =IF(OR(AA14="Lunch",AA14="Recess",AND(AD14=1,AE14=1,AA14="Passing")), 0, IF(AB14>AC14,(AC14+0.5)-AB14,AC14-AB14)) -> 0 | AH14: =ROUND(((H14+N14+T14+Z14+AF14)/5)*1440,0)/1440 -> 0 | AI14: =IF(OR(ISNUMBER(SEARCH("*Period*",C14)),ISNUMBER(SEARCH("*Period*",I14)),ISNUMBER(SEARCH("*Period*",O14)),ISNUMBER(SEARCH("*Period*",U14)),ISNUMBER(SEARCH("*Period*",AA14))),AH14,0) -> 0 | AJ14: =IF(OR(ISNUMBER(SEARCH("*Period*",C14)),ISNUMBER(SEARCH("*Period*",I14)),ISNUMBER(SEARCH("*Period*",O14)),ISNUMBER(SEARCH("*Period*",U14)),ISNUMBER(SEARCH("*Period*",AA14))),INDIRECT("R"&TEXT(MIN(IF(COUNTIF(C14:AA14,C14:AA14)=MAX(COUNTIF(C14:AA14,C14:AA14)),ROW(C14:AA14)*1000+COLUMN(C14:AA14))),"0\C000"),0),"") ->  | AK14: =IF(AJ14=0, AJ57,AJ14) ->  | AL14: =IF(AM14=0,"",(MAX(AL$13:AL13)+1)*1) ->  | AM14: =IF(AK14="",0,REPLACE(AK14,SEARCH(" ",AK14,1),7,"")) -> 0 | AN14: =AI14 -> 0 | AO14: =IF(OR(ISNUMBER(SEARCH("*Seminar*",C14)),ISNUMBER(SEARCH("*Seminar*",I14)),ISNUMBER(SEARCH("*Seminar*",O14)),ISNUMBER(SEARCH("*Seminar*",U14)),ISNUMBER(SEARCH("*Seminar*",AA14))),AH14,0) -> 0
F15: 0 | G15: 0 | H15: 0 | L15: 0 | M15: 0 | N15: 0 | R15: 0 | S15: 0 | T15: 0 | X15: 0 | Y15: 0 | Z15: 0 | AD15: 0 | AE15: 0 | AF15: 0 | AH15: 0 | AI15: 0 | AL15: =IF(AM15=0,"",(MAX(AL$13:AL14)+1)*1) ->  | AM15: 0 | AN15: 0 | AO15: 0
F16: 0 | G16: 0 | H16: 0 | L16: 0 | M16: 0 | N16: 0 | R16: 0 | S16: 0 | T16: 0 | X16: 0 | Y16: 0 | Z16: 0 | AD16: 0 | AE16: 0 | AF16: 0 | AH16: 0 | AI16: 0 | AL16: =IF(AM16=0,"",(MAX(AL$13:AL15)+1)*1) ->  | AM16: 0 | AN16: 0 | AO16: 0
F17: 0 | G17: 0 | H17: 0 | L17: 0 | M17: 0 | N17: 0 | R17: 0 | S17: 0 | T17: 0 | X17: 0 | Y17: 0 | Z17: 0 | AD17: 0 | AE17: 0 | AF17: 0 | AH17: 0 | AI17: 0 | AL17: =IF(AM17=0,"",(MAX(AL$13:AL16)+1)*1) ->  | AM17: 0 | AN17: 0 | AO17: 0
F18: 0 | G18: 0 | H18: 0 | L18: 0 | M18: 0 | N18: 0 | R18: 0 | S18: 0 | T18: 0 | X18: 0 | Y18: 0 | Z18: 0 | AD18: 0 | AE18: 0 | AF18: 0 | AH18: 0 | AI18: 0 | AL18: =IF(AM18=0,"",(MAX(AL$13:AL17)+1)*1) ->  | AM18: 0 | AN18: 0 | AO18: 0
F19: 0 | G19: 0 | H19: 0 | L19: 0 | M19: 0 | N19: 0 | R19: 0 | S19: 0 | T19: 0 | X19: 0 | Y19: 0 | Z19: 0 | AD19: 0 | AE19: 0 | AF19: 0 | AH19: 0 | AI19: 0 | AL19: =IF(AM19=0,"",(MAX(AL$13:AL18)+1)*1) ->  | AM19: 0 | AN19: 0 | AO19: 0
F20: 0 | G20: 0 | H20: 0 | L20: 0 | M20: 0 | N20: 0 | R20: 0 | S20: 0 | T20: 0 | X20: 0 | Y20: 0 | Z20: 0 | AD20: 0 | AE20: 0 | AF20: 0 | AH20: 0 | AI20: 0 | AL20: =IF(AM20=0,"",(MAX(AL$13:AL19)+1)*1) ->  | AM20: 0 | AN20: 0 | AO20: 0
F21: 0 | G21: 0 | H21: 0 | L21: 0 | M21: 0 | N21: 0 | R21: 0 | S21: 0 | T21: 0 | X21: 0 | Y21: 0 | Z21: 0 | AD21: 0 | AE21: 0 | AF21: 0 | AH21: 0 | AI21: 0 | AL21: =IF(AM21=0,"",(MAX(AL$13:AL20)+1)*1) ->  | AM21: 0 | AN21: 0 | AO21: 0
F22: =COUNTIF(C21,"="&"Lunch") -> 0 | G22: =COUNTIF(H20,">"&"00") -> 0 | H22: =IF(OR(C22="Lunch",C22="Recess",AND(F22=1,G22=1,C22="Passing")), 0, IF(D22>E22,(E22+0.5)-D22,E22-D22)) -> 0 | L22: 0 | M22: 0 | N22: =IF(OR(I22="Lunch",I22="Recess",AND(L22=1,M22=1,I22="Passing")), 0, IF(J22>K22,(K22+0.5)-J22,K22-J22)) -> 0 | R22: 0 | S22: 0 | T22: =IF(OR(O22="Lunch",O22="Recess",AND(R22=1,S22=1,O22="Passing")), 0, IF(P22>Q22,(Q22+0.5)-P22,Q22-P22)) -> 0 | X22: 0 | Y22: 0 | Z22: =IF(OR(U22="Lunch",U22="Recess",AND(X22=1,Y22=1,U22="Passing")), 0, IF(V22>W22,(W22+0.5)-V22,W22-V22)) -> 0 | AD22: 0 | AE22: 0 | AF22: =IF(OR(AA22="Lunch",AA22="Recess",AND(AD22=1,AE22=1,AA22="Passing")), 0, IF(AB22>AC22,(AC22+0.5)-AB22,AC22-AB22)) -> 0 | AH22: =ROUND(((H22+N22+T22+Z22+AF22)/5)*1440,0)/1440 -> 0 | AI22: =IF(OR(ISNUMBER(SEARCH("*Period*",C22)),ISNUMBER(SEARCH("*Period*",I22)),ISNUMBER(SEARCH("*Period*",O22)),ISNUMBER(SEARCH("*Period*",U22)),ISNUMBER(SEARCH("*Period*",AA22))),AH22,0) -> 0 | AJ22: =IF(OR(ISNUMBER(SEARCH("*Period*",C22)),ISNUMBER(SEARCH("*Period*",I22)),ISNUMBER(SEARCH("*Period*",O22)),ISNUMBER(SEARCH("*Period*",U22)),ISNUMBER(SEARCH("*Period*",AA22))),INDIRECT("R"&TEXT(MIN(IF(COUNTIF(C22:AA22,C22:AA22)=MAX(COUNTIF(C22:AA22,C22:AA22)),ROW(C22:AA22)*1000+COLUMN(C22:AA22))),"0\C000"),0),"") ->  | AL22: =IF(AM22=0,"",(MAX(AL$13:AL21)+1)*1) ->  | AM22: =IF(AK22="",0,REPLACE(AK22,SEARCH(" ",AK22,1),7,"")) -> 0 | AN22: =AI22 -> 0 | AO22: =IF(OR(ISNUMBER(SEARCH("*Seminar*",C22)),ISNUMBER(SEARCH("*Seminar*",I22)),ISNUMBER(SEARCH("*Seminar*",O22)),ISNUMBER(SEARCH("*Seminar*",U22)),ISNUMBER(SEARCH("*Seminar*",AA22))),AH22,0) -> 0
F23: 0 | G23: 0 | H23: 0 | L23: 0 | M23: 0 | N23: 0 | R23: 0 | S23: 0 | T23: 0 | X23: 0 | Y23: 0 | Z23: 0 | AD23: 0 | AE23: 0 | AF23: 0 | AH23: 0 | AI23: 0 | AL23: =IF(AM23=0,"",(MAX(AL$13:AL22)+1)*1) ->  | AM23: 0 | AN23: 0 | AO23: 0
F24: 0 | G24: 0 | H24: 0 | L24: 0 | M24: 0 | N24: 0 | R24: 0 | S24: 0 | T24: 0 | X24: 0 | Y24: 0 | Z24: 0 | AD24: 0 | AE24: 0 | AF24: 0 | AH24: 0 | AI24: 0 | AL24: =IF(AM24=0,"",(MAX(AL$13:AL23)+1)*1) ->  | AM24: 0 | AN24: 0 | AO24: 0
F25: 0 | G25: 0 | H25: 0 | L25: 0 | M25: 0 | N25: 0 | R25: 0 | S25: 0 | T25: 0 | X25: 0 | Y25: 0 | Z25: 0 | AD25: 0 | AE25: 0 | AF25: 0 | AH25: 0 | AI25: 0 | AL25: =IF(AM25=0,"",(MAX(AL$13:AL24)+1)*1) ->  | AM25: 0 | AN25: 0 | AO25: 0
F26: =COUNTIF(C25,"="&"Lunch") -> 0 | G26: =COUNTIF(H24,">"&"00") -> 0 | H26: =IF(OR(C26="Lunch",C26="Recess",AND(F26=1,G26=1,C26="Passing")), 0, IF(D26>E26,(E26+0.5)-D26,E26-D26)) -> 0 | L26: 0 | M26: 0 | N26: =IF(OR(I26="Lunch",I26="Recess",AND(L26=1,M26=1,I26="Passing")), 0, IF(J26>K26,(K26+0.5)-J26,K26-J26)) -> 0 | R26: 0 | S26: 0 | T26: =IF(OR(O26="Lunch",O26="Recess",AND(R26=1,S26=1,O26="Passing")), 0, IF(P26>Q26,(Q26+0.5)-P26,Q26-P26)) -> 0 | X26: 0 | Y26: 0 | Z26: =IF(OR(U26="Lunch",U26="Recess",AND(X26=1,Y26=1,U26="Passing")), 0, IF(V26>W26,(W26+0.5)-V26,W26-V26)) -> 0 | AD26: 0 | AE26: 0 | AF26: =IF(OR(AA26="Lunch",AA26="Recess",AND(AD26=1,AE26=1,AA26="Passing")), 0, IF(AB26>AC26,(AC26+0.5)-AB26,AC26-AB26)) -> 0 | AH26: =ROUND(((H26+N26+T26+Z26+AF26)/5)*1440,0)/1440 -> 0 | AI26: =IF(OR(ISNUMBER(SEARCH("*Period*",C26)),ISNUMBER(SEARCH("*Period*",I26)),ISNUMBER(SEARCH("*Period*",O26)),ISNUMBER(SEARCH("*Period*",U26)),ISNUMBER(SEARCH("*Period*",AA26))),AH26,0) -> 0 | AJ26: =IF(OR(ISNUMBER(SEARCH("*Period*",C26)),ISNUMBER(SEARCH("*Period*",I26)),ISNUMBER(SEARCH("*Period*",O26)),ISNUMBER(SEARCH("*Period*",U26)),ISNUMBER(SEARCH("*Period*",AA26))),INDIRECT("R"&TEXT(MIN(IF(COUNTIF(C26:AA26,C26:AA26)=MAX(COUNTIF(C26:AA26,C26:AA26)),ROW(C26:AA26)*1000+COLUMN(C26:AA26))),"0\C000"),0),"") ->  | AK26: =IF(AJ26=0, AJ81,AJ26) ->  | AL26: =IF(AM26=0,"",(MAX(AL$13:AL25)+1)*1) ->  | AM26: =IF(AK26="",0,REPLACE(AK26,SEARCH(" ",AK26,1),7,"")) -> 0 | AN26: =AI26 -> 0 | AO26: =IF(OR(ISNUMBER(SEARCH("*Seminar*",C26)),ISNUMBER(SEARCH("*Seminar*",I26)),ISNUMBER(SEARCH("*Seminar*",O26)),ISNUMBER(SEARCH("*Seminar*",U26)),ISNUMBER(SEARCH("*Seminar*",AA26))),AH26,0) -> 0
F27: 0 | G27: 0 | H27: 0 | L27: 0 | M27: 0 | N27: 0 | R27: 0 | S27: 0 | T27: 0 | X27: 0 | Y27: 0 | Z27: 0 | AD27: 0 | AE27: 0 | AF27: 0 | AH27: 0 | AI27: 0 | AL27: =IF(AM27=0,"",(MAX(AL$13:AL26)+1)*1) ->  | AM27: 0 | AN27: 0 | AO27: 0
F28: 0 | G28: 0 | H28: 0 | L28: 0 | M28: 0 | N28: 0 | R28: 0 | S28: 0 | T28: 0 | X28: 0 | Y28: 0 | Z28: 0 | AD28: 0 | AE28: 0 | AF28: 0 | AH28: 0 | AI28: 0 | AL28: =IF(AM28=0,"",(MAX(AL$13:AL27)+1)*1) ->  | AM28: 0 | AN28: 0 | AO28: 0
F29: 0 | G29: 0 | H29: 0 | L29: 0 | M29: 0 | N29: 0 | R29: 0 | S29: 0 | T29: 0 | X29: 0 | Y29: 0 | Z29: 0 | AD29: 0 | AE29: 0 | AF29: 0 | AH29: 0 | AI29: 0 | AL29: =IF(AM29=0,"",(MAX(AL$13:AL28)+1)*1) ->  | AM29: 0 | AN29: 0 | AO29: 0
F30: =COUNTIF(C29,"="&"Lunch") -> 0 | G30: =COUNTIF(H28,">"&"00") -> 0 | H30: =IF(OR(C30="Lunch",C30="Recess",AND(F30=1,G30=1,C30="Passing")), 0, IF(D30>E30,(E30+0.5)-D30,E30-D30)) -> 0 | L30: 0 | M30: 0 | N30: =IF(OR(I30="Lunch",I30="Recess",AND(L30=1,M30=1,I30="Passing")), 0, IF(J30>K30,(K30+0.5)-J30,K30-J30)) -> 0 | R30: 0 | S30: 0 | T30: =IF(OR(O30="Lunch",O30="Recess",AND(R30=1,S30=1,O30="Passing")), 0, IF(P30>Q30,(Q30+0.5)-P30,Q30-P30)) -> 0 | X30: 0 | Y30: 0 | Z30: =IF(OR(U30="Lunch",U30="Recess",AND(X30=1,Y30=1,U30="Passing")), 0, IF(V30>W30,(W30+0.5)-V30,W30-V30)) -> 0 | AD30: 0 | AE30: 0 | AF30: =IF(OR(AA30="Lunch",AA30="Recess",AND(AD30=1,AE30=1,AA30="Passing")), 0, IF(AB30>AC30,(AC30+0.5)-AB30,AC30-AB30)) -> 0 | AH30: =ROUND(((H30+N30+T30+Z30+AF30)/5)*1440,0)/1440 -> 0 | AI30: =IF(OR(ISNUMBER(SEARCH("*Period*",C30)),ISNUMBER(SEARCH("*Period*",I30)),ISNUMBER(SEARCH("*Period*",O30)),ISNUMBER(SEARCH("*Period*",U30)),ISNUMBER(SEARCH("*Period*",AA30))),AH30,0) -> 0 | AJ30: =IF(OR(ISNUMBER(SEARCH("*Period*",C30)),ISNUMBER(SEARCH("*Period*",I30)),ISNUMBER(SEARCH("*Period*",O30)),ISNUMBER(SEARCH("*Period*",U30)),ISNUMBER(SEARCH("*Period*",AA30))),INDIRECT("R"&TEXT(MIN(IF(COUNTIF(C30:AA30,C30:AA30)=MAX(COUNTIF(C30:AA30,C30:AA30)),ROW(C30:AA30)*1000+COLUMN(C30:AA30))),"0\C000"),0),"") ->  | AL30: =IF(AM30=0,"",(MAX(AL$13:AL29)+1)*1) ->  | AM30: =IF(AK30="",0,REPLACE(AK30,SEARCH(" ",AK30,1),7,"")) -> 0 | AN30: =AI30 -> 0 | AO30: =IF(OR(ISNUMBER(SEARCH("*Seminar*",C30)),ISNUMBER(SEARCH("*Seminar*",I30)),ISNUMBER(SEARCH("*Seminar*",O30)),ISNUMBER(SEARCH("*Seminar*",U30)),ISNUMBER(SEARCH("*Seminar*",AA30))),AH30,0) -> 0
F31: 0 | G31: 0 | H31: 0 | L31: 0 | M31: 0 | N31: 0 | R31: 0 | S31: 0 | T31: 0 | X31: 0 | Y31: 0 | Z31: 0 | AD31: 0 | AE31: 0 | AF31: 0 | AH31: 0 | AI31: 0 | AL31: =IF(AM31=0,"",(MAX(AL$13:AL30)+1)*1) ->  | AM31: 0 | AN31: 0 | AO31: 0
F32: 0 | G32: 0 | H32: 0 | L32: 0 | M32: 0 | N32: 0 | R32: 0 | S32: 0 | T32: 0 | X32: 0 | Y32: 0 | Z32: 0 | AD32: 0 | AE32: 0 | AF32: 0 | AH32: 0 | AI32: 0 | AL32: =IF(AM32=0,"",(MAX(AL$13:AL31)+1)*1) ->  | AM32: 0 | AN32: 0 | AO32: 0
F33: 0 | G33: 0 | H33: 0 | L33: 0 | M33: 0 | N33: 0 | R33: 0 | S33: 0 | T33: 0 | X33: 0 | Y33: 0 | Z33: 0 | AD33: 0 | AE33: 0 | AF33: 0 | AH33: 0 | AI33: 0 | AL33: =IF(AM33=0,"",(MAX(AL$13:AL32)+1)*1) ->  | AM33: 0 | AN33: 0 | AO33: 0
F34: 0 | G34: =COUNTIF(H32,">"&"00") -> 0 | H34: 0 | L34: 0 | M34: =COUNTIF(N32,">"&"00") -> 0 | N34: 0 | R34: 0 | S34: =COUNTIF(T32,">"&"00") -> 0 | T34: 0 | X34: 0 | Y34: =COUNTIF(Z32,">"&"00") -> 0 | Z34: 0 | AD34: 0 | AE34: =COUNTIF(AF32,">"&"00") -> 0 | AF34: 0 | AH34: 0 | AI34: 0 | AK34: =IF(AJ34=0, AJ65,AJ34) ->  | AL34: =IF(AM34=0,"",(MAX(AL$13:AL21)+1)*1) ->  | AM34: 0 | AN34: 0 | AO34: 0
F35: 0 | G35: =COUNTIF(H33,">"&"00") -> 0 | H35: =IF(OR(C35="Lunch",C35="Recess",AND(F35=1,G35=1,C35="Passing")), 0, IF(D35>E35,(E35+0.5)-D35,E35-D35)) -> 0 | L35: 0 | M35: =COUNTIF(N33,">"&"00") -> 0 | N35: =IF(OR(I35="Lunch",I35="Recess",AND(L35=1,M35=1,I35="Passing")), 0, IF(J35>K35,(K35+0.5)-J35,K35-J35)) -> 0 | R35: 0 | S35: =COUNTIF(T33,">"&"00") -> 0 | T35: =IF(OR(O35="Lunch",O35="Recess",AND(R35=1,S35=1,O35="Passing")), 0, IF(P35>Q35,(Q35+0.5)-P35,Q35-P35)) -> 0 | X35: 0 | Y35: =COUNTIF(Z33,">"&"00") -> 0 | Z35: =IF(OR(U35="Lunch",U35="Recess",AND(X35=1,Y35=1,U35="Passing")), 0, IF(V35>W35,(W35+0.5)-V35,W35-V35)) -> 0 | AD35: 0 | AE35: =COUNTIF(AF33,">"&"00") -> 0 | AF35: =IF(OR(AA35="Lunch",AA35="Recess",AND(AD35=1,AE35=1,AA35="Passing")), 0, IF(AB35>AC35,(AC35+0.5)-AB35,AC35-AB35)) -> 0 | AH35: 0 | AI35: 0 | AL35: =IF(AM35=0,"",(MAX(AL$13:AL34)+1)*1) ->  | AM35: 0 | AN35: 0 | AO35: 0
F36: 0 | G36: =COUNTIF(H34,">"&"00") -> 0 | H36: =IF(OR(C36="Lunch",C36="Recess",AND(F36=1,G36=1,C36="Passing")), 0, IF(D36>E36,(E36+0.5)-D36,E36-D36)) -> 0 | L36: 0 | M36: =COUNTIF(N34,">"&"00") -> 0 | N36: =IF(OR(I36="Lunch",I36="Recess",AND(L36=1,M36=1,I36="Passing")), 0, IF(J36>K36,(K36+0.5)-J36,K36-J36)) -> 0 | R36: 0 | S36: =COUNTIF(T34,">"&"00") -> 0 | T36: =IF(OR(O36="Lunch",O36="Recess",AND(R36=1,S36=1,O36="Passing")), 0, IF(P36>Q36,(Q36+0.5)-P36,Q36-P36)) -> 0 | X36: 0 | Y36: =COUNTIF(Z34,">"&"00") -> 0 | Z36: =IF(OR(U36="Lunch",U36="Recess",AND(X36=1,Y36=1,U36="Passing")), 0, IF(V36>W36,(W36+0.5)-V36,W36-V36)) -> 0 | AD36: 0 | AE36: =COUNTIF(AF34,">"&"00") -> 0 | AF36: =IF(OR(AA36="Lunch",AA36="Recess",AND(AD36=1,AE36=1,AA36="Passing")), 0, IF(AB36>AC36,(AC36+0.5)-AB36,AC36-AB36)) -> 0 | AH36: 0 | AI36: 0 | AL36: =IF(AM36=0,"",(MAX(AL$13:AL35)+1)*1) ->  | AM36: 0 | AN36: 0 | AO36: 0
F37: 0 | G37: =COUNTIF(H35,">"&"00") -> 0 | H37: 0 | L37: 0 | M37: =COUNTIF(N35,">"&"00") -> 0 | N37: 0 | R37: 0 | S37: =COUNTIF(T35,">"&"00") -> 0 | T37: 0 | X37: 0 | Y37: =COUNTIF(Z35,">"&"00") -> 0 | Z37: 0 | AD37: 0 | AE37: =COUNTIF(AF35,">"&"00") -> 0 | AF37: 0 | AH37: 0 | AI37: 0 | AL37: =IF(AM37=0,"",(MAX(AL$13:AL36)+1)*1) ->  | AM37: 0 | AN37: 0 | AO37: 0
F38: 0 | G38: 0 | H38: 0 | L38: 0 | M38: 0 | N38: 0 | R38: 0 | S38: 0 | T38: 0 | X38: 0 | Y38: 0 | Z38: 0 | AD38: 0 | AE38: 0 | AF38: 0 | AH38: 0 | AI38: 0 | AK38: =IF(AJ38=0, AJ81,AJ38) ->  | AL38: =IF(AM38=0,"",(MAX(AL$13:AL37)+1)*1) ->  | AM38: 0 | AN38: 0 | AO38: 0
F39: 0 | G39: 0 | H39: 0 | L39: 0 | M39: 0 | N39: 0 | R39: 0 | S39: 0 | T39: 0 | X39: 0 | Y39: 0 | Z39: 0 | AD39: 0 | AE39: 0 | AF39: 0 | AH39: 0 | AI39: 0 | AL39: =IF(AM39=0,"",(MAX(AL$13:AL38)+1)*1) ->  | AM39: 0 | AN39: 0 | AO39: 0
F40: 0 | G40: 0 | H40: 0 | L40: 0 | M40: 0 | N40: 0 | R40: 0 | S40: 0 | T40: 0 | X40: 0 | Y40: 0 | Z40: 0 | AD40: 0 | AE40: 0 | AF40: 0 | AH40: 0 | AI40: 0 | AL40: =IF(AM40=0,"",(MAX(AL$13:AL39)+1)*1) ->  | AM40: 0 | AN40: 0 | AO40: 0
F41: 0 | G41: 0 | H41: 0 | L41: 0 | M41: 0 | N41: 0 | R41: 0 | S41: 0 | T41: 0 | X41: 0 | Y41: 0 | Z41: 0 | AD41: 0 | AE41: 0 | AF41: 0 | AH41: 0 | AI41: 0 | AL41: =IF(AM41=0,"",(MAX(AL$13:AL40)+1)*1) ->  | AM41: 0 | AN41: 0 | AO41: 0
F42: 0 | G42: 0 | H42: 0 | L42: 0 | M42: 0 | N42: 0 | R42: 0 | S42: 0 | T42: 0 | X42: 0 | Y42: 0 | Z42: 0 | AD42: 0 | AE42: 0 | AF42: 0 | AH42: 0 | AI42: 0 | AL42: =IF(AM42=0,"",(MAX(AL$13:AL41)+1)*1) ->  | AM42: 0 | AN42: 0 | AO42: 0
F43: 0 | G43: 0 | H43: 0 | L43: 0 | M43: 0 | N43: 0 | R43: 0 | S43: 0 | T43: 0 | X43: 0 | Y43: 0 | Z43: 0 | AD43: 0 | AE43: 0 | AF43: 0 | AH43: 0 | AI43: 0 | AL43: =IF(AM43=0,"",(MAX(AL$13:AL42)+1)*1) ->  | AM43: 0 | AN43: 0 | AO43: 0
F44: 0 | G44: 0 | H44: 0 | L44: 0 | M44: 0 | N44: 0 | R44: 0 | S44: 0 | T44: 0 | X44: 0 | Y44: 0 | Z44: 0 | AD44: 0 | AE44: 0 | AF44: 0 | AH44: 0 | AI44: 0 | AL44: =IF(AM44=0,"",(MAX(AL$13:AL43)+1)*1) ->  | AM44: 0 | AN44: 0 | AO44: 0
F45: 0 | G45: 0 | H45: 0 | L45: 0 | M45: 0 | N45: 0 | R45: 0 | S45: 0 | T45: 0 | X45: 0 | Y45: 0 | Z45: 0 | AD45: 0 | AE45: 0 | AF45: 0 | AH45: 0 | AI45: 0 | AL45: =IF(AM45=0,"",(MAX(AL$13:AL44)+1)*1) ->  | AM45: 0 | AN45: 0 | AO45: 0
F46: 0 | G46: 0 | H46: 0 | L46: 0 | M46: 0 | N46: 0 | R46: 0 | S46: 0 | T46: 0 | X46: 0 | Y46: 0 | Z46: 0 | AD46: 0 | AE46: 0 | AF46: 0 | AH46: 0 | AI46: 0 | AL46: =IF(AM46=0,"",(MAX(AL$13:AL45)+1)*1) ->  | AM46: 0 | AN46: 0 | AO46: 0
F47: 0 | G47: 0 | H47: 0 | L47: 0 | M47: 0 | N47: 0 | R47: 0 | S47: 0 | T47: 0 | X47: 0 | Y47: 0 | Z47: 0 | AD47: 0 | AE47: 0 | AF47: 0 | AH47: 0 | AI47: 0 | AL47: =IF(AM47=0,"",(MAX(AL$13:AL46)+1)*1) ->  | AM47: 0 | AN47: 0 | AO47: 0
F48: 0 | G48: 0 | H48: 0 | L48: 0 | M48: 0 | N48: 0 | R48: 0 | S48: 0 | T48: 0 | X48: 0 | Y48: 0 | Z48: 0 | AD48: 0 | AE48: 0 | AF48: 0 | AH48: 0 | AI48: 0 | AL48: =IF(AM48=0,"",(MAX(AL$13:AL47)+1)*1) ->  | AM48: 0 | AN48: 0 | AO48: 0
E51: Total Minutes | H51: =SUM(H14:H50) -> 0 | K51: Total Minutes | N51: =SUM(N14:N50) -> 0 | Q51: Total Minutes | T51: =SUM(T14:T50) -> 0 | W51: Total Minutes | Z51: =SUM(Z14:Z50) -> 0 | AC51: Total Minutes | AF51: =SUM(AF14:AF50) -> 0 | AH51: =ROUND(((H51+N51+T51+Z51+AF51)/5)*1440,0)/1440 -> 0 | AI51: =SUM(AI14:AI48) -> 0 | AO51: =SUM(AO14:AO48) -> 0
C53: WEEK 2
C54: Monday | I54: Tuesday | O54: Wednesday | U54: Thursday | AA54: Friday | AH54: Daily Average Minutes for Both Weeks
C55: Type | D55: Start | E55: End | I55: Type | J55: Start | K55: End | O55: Type | P55: Start | Q55: End | U55: Type | V55: Start | W55: End | AA55: Type | AB55: Start | AC55: End | AJ55: P-Test
C56: of Time | D56: Time | E56: Time | H56: Min | I56: of Time | J56: Time | K56: Time | N56: Min | O56: of Time | P56: Time | Q56: Time | T56: Min | U56: of Time | V56: Time | W56: Time | Z56: Min | AA56: of Time | AB56: Time | AC56: Time | AF56: Min
F57: =COUNTIF(C56,"="&"Lunch") -> 0 | G57: =COUNTIF(H55,">"&"00") -> 0 | H57: =IF(OR(C57="Lunch",C57="Recess",AND(F57=1,G57=1,C57="Passing")), 0, IF(D57>E57,(E57+0.5)-D57,E57-D57)) -> 0 | L57: =COUNTIF(I56,"="&"Lunch") -> 0 | M57: =COUNTIF(N55,">"&"00") -> 0 | N57: =IF(OR(I57="Lunch",I57="Recess",AND(L57=1,M57=1,I57="Passing")), 0, IF(J57>K57,(K57+0.5)-J57,K57-J57)) -> 0 | R57: =COUNTIF(O56,"="&"Lunch") -> 0 | S57: =COUNTIF(T55,">"&"00") -> 0 | T57: =IF(OR(O57="Lunch",O57="Recess",AND(R57=1,S57=1,O57="Passing")), 0, IF(P57>Q57,(Q57+0.5)-P57,Q57-P57)) -> 0 | X57: =COUNTIF(U56,"="&"Lunch") -> 0 | Y57: =COUNTIF(Z55,">"&"00") -> 0 | Z57: =IF(OR(U57="Lunch",U57="Recess",AND(X57=1,Y57=1,U57="Passing")), 0, IF(V57>W57,(W57+0.5)-V57,W57-V57)) -> 0 | AD57: =COUNTIF(AA56,"="&"Lunch") -> 0 | AE57: =COUNTIF(AF55,">"&"00") -> 0 | AF57: =IF(OR(AA57="Lunch",AA57="Recess",AND(AD57=1,AE57=1,AA57="Passing")), 0, IF(AB57>AC57,(AC57+0.5)-AB57,AC57-AB57)) -> 0 | AH57: =ROUND(((H57+N57+T57+Z57+AF57+H14+N14+T14+Z14+AF14)/10)*1440,0)/1440 -> 0 | AJ57: =IF(OR(ISNUMBER(SEARCH("*Period*",C57)),ISNUMBER(SEARCH("*Period*",I57)),ISNUMBER(SEARCH("*Period*",O57)),ISNUMBER(SEARCH("*Period*",U57)),ISNUMBER(SEARCH("*Period*",AA57))),INDIRECT("R"&TEXT(MIN(IF(COUNTIF(C57:AA57,C57:AA57)=MAX(COUNTIF(C57:AA57,C57:AA57)),ROW(C57:AA57)*1000+COLUMN(C57:AA57))),"0\C000"),0),"") ->  | AM57: =IF(AJ57="","",VALUE(LEFT(AJ57,1))) -> 
F58: 0 | G58: 0 | H58: 0 | L58: 0 | M58: 0 | N58: 0 | R58: 0 | S58: 0 | T58: 0 | X58: 0 | Y58: 0 | Z58: 0 | AD58: 0 | AE58: 0 | AF58: 0 | AH58: 0
F59: 0 | G59: 0 | H59: 0 | L59: 0 | M59: 0 | N59: 0 | R59: 0 | S59: 0 | T59: 0 | X59: 0 | Y59: 0 | Z59: 0 | AD59: 0 | AE59: 0 | AF59: 0 | AH59: 0
F60: 0 | G60: 0 | H60: 0 | L60: 0 | M60: 0 | N60: 0 | R60: 0 | S60: 0 | T60: 0 | X60: 0 | Y60: 0 | Z60: 0 | AD60: 0 | AE60: 0 | AF60: 0 | AH60: 0
F61: 0 | G61: 0 | H61: 0 | L61: 0 | M61: 0 | N61: 0 | R61: 0 | S61: 0 | T61: 0 | X61: 0 | Y61: 0 | Z61: 0 | AD61: 0 | AE61: 0 | AF61: 0 | AH61: 0
F62: 0 | G62: 0 | H62: 0 | L62: 0 | M62: 0 | N62: 0 | R62: 0 | S62: 0 | T62: 0 | X62: 0 | Y62: 0 | Z62: 0 | AD62: 0 | AE62: 0 | AF62: 0 | AH62: 0
F63: 0 | G63: 0 | H63: 0 | L63: 0 | M63: 0 | N63: 0 | R63: 0 | S63: 0 | T63: 0 | X63: 0 | Y63: 0 | Z63: 0 | AD63: 0 | AE63: 0 | AF63: 0 | AH63: 0
F64: 0 | G64: 0 | H64: 0 | L64: 0 | M64: 0 | N64: 0 | R64: 0 | S64: 0 | T64: 0 | X64: 0 | Y64: 0 | Z64: 0 | AD64: 0 | AE64: 0 | AF64: 0 | AH64: 0
F65: 0 | G65: 0 | H65: 0 | L65: 0 | M65: 0 | N65: 0 | R65: 0 | S65: 0 | T65: 0 | X65: 0 | Y65: 0 | Z65: 0 | AD65: 0 | AE65: 0 | AF65: 0 | AH65: 0
F66: 0 | G66: 0 | H66: =IF(OR(C66="Lunch",C66="Recess",AND(F66=1,G66=1,C66="Passing")), 0, IF(D66>E66,(E66+0.5)-D66,E66-D66)) -> 0 | L66: 0 | M66: 0 | N66: =IF(OR(I66="Lunch",I66="Recess",AND(L66=1,M66=1,I66="Passing")), 0, IF(J66>K66,(K66+0.5)-J66,K66-J66)) -> 0 | R66: 0 | S66: 0 | T66: =IF(OR(O66="Lunch",O66="Recess",AND(R66=1,S66=1,O66="Passing")), 0, IF(P66>Q66,(Q66+0.5)-P66,Q66-P66)) -> 0 | X66: 0 | Y66: 0 | Z66: =IF(OR(U66="Lunch",U66="Recess",AND(X66=1,Y66=1,U66="Passing")), 0, IF(V66>W66,(W66+0.5)-V66,W66-V66)) -> 0 | AD66: 0 | AE66: 0 | AF66: =IF(OR(AA66="Lunch",AA66="Recess",AND(AD66=1,AE66=1,AA66="Passing")), 0, IF(AB66>AC66,(AC66+0.5)-AB66,AC66-AB66)) -> 0 | AH66: 0
F67: 0 | G67: 0 | H67: =IF(OR(C67="Lunch",C67="Recess",AND(F67=1,G67=1,C67="Passing")), 0, IF(D67>E67,(E67+0.5)-D67,E67-D67)) -> 0 | L67: 0 | M67: 0 | N67: =IF(OR(I67="Lunch",I67="Recess",AND(L67=1,M67=1,I67="Passing")), 0, IF(J67>K67,(K67+0.5)-J67,K67-J67)) -> 0 | R67: 0 | S67: 0 | T67: =IF(OR(O67="Lunch",O67="Recess",AND(R67=1,S67=1,O67="Passing")), 0, IF(P67>Q67,(Q67+0.5)-P67,Q67-P67)) -> 0 | X67: 0 | Y67: 0 | Z67: =IF(OR(U67="Lunch",U67="Recess",AND(X67=1,Y67=1,U67="Passing")), 0, IF(V67>W67,(W67+0.5)-V67,W67-V67)) -> 0 | AD67: 0 | AE67: 0 | AF67: =IF(OR(AA67="Lunch",AA67="Recess",AND(AD67=1,AE67=1,AA67="Passing")), 0, IF(AB67>AC67,(AC67+0.5)-AB67,AC67-AB67)) -> 0 | AH67: 0
F68: 0 | G68: 0 | H68: 0 | L68: 0 | M68: 0 | N68: 0 | R68: 0 | S68: 0 | T68: 0 | X68: 0 | Y68: 0 | Z68: 0 | AD68: 0 | AE68: 0 | AF68: 0 | AH68: 0
F69: 0 | G69: 0 | H69: 0 | L69: 0 | M69: 0 | N69: 0 | R69: 0 | S69: 0 | T69: 0 | X69: 0 | Y69: 0 | Z69: 0 | AD69: 0 | AE69: 0 | AF69: 0 | AH69: 0 | AJ69: =IF(OR(ISNUMBER(SEARCH("*Period*",C69)),ISNUMBER(SEARCH("*Period*",I69)),ISNUMBER(SEARCH("*Period*",O69)),ISNUMBER(SEARCH("*Period*",U69)),ISNUMBER(SEARCH("*Period*",AA69))),INDIRECT("R"&TEXT(MIN(IF(COUNTIF(C69:AA69,C69:AA69)=MAX(COUNTIF(C69:AA69,C69:AA69)),ROW(C69:AA69)*1000+COLUMN(C69:AA69))),"0\C000"),0),"") ->  | AM69: =IF(AJ69="","",VALUE(LEFT(AJ69,1))) -> 
F70: 0 | G70: 0 | H70: =IF(OR(C70="Lunch",C70="Recess",AND(F70=1,G70=1,C70="Passing")), 0, IF(D70>E70,(E70+0.5)-D70,E70-D70)) -> 0 | L70: 0 | M70: 0 | N70: =IF(OR(I70="Lunch",I70="Recess",AND(L70=1,M70=1,I70="Passing")), 0, IF(J70>K70,(K70+0.5)-J70,K70-J70)) -> 0 | R70: 0 | S70: 0 | T70: =IF(OR(O70="Lunch",O70="Recess",AND(R70=1,S70=1,O70="Passing")), 0, IF(P70>Q70,(Q70+0.5)-P70,Q70-P70)) -> 0 | X70: 0 | Y70: 0 | Z70: =IF(OR(U70="Lunch",U70="Recess",AND(X70=1,Y70=1,U70="Passing")), 0, IF(V70>W70,(W70+0.5)-V70,W70-V70)) -> 0 | AD70: 0 | AE70: 0 | AF70: =IF(OR(AA70="Lunch",AA70="Recess",AND(AD70=1,AE70=1,AA70="Passing")), 0, IF(AB70>AC70,(AC70+0.5)-AB70,AC70-AB70)) -> 0 | AH70: 0
F71: 0 | G71: 0 | H71: =IF(OR(C71="Lunch",C71="Recess",AND(F71=1,G71=1,C71="Passing")), 0, IF(D71>E71,(E71+0.5)-D71,E71-D71)) -> 0 | L71: 0 | M71: 0 | N71: =IF(OR(I71="Lunch",I71="Recess",AND(L71=1,M71=1,I71="Passing")), 0, IF(J71>K71,(K71+0.5)-J71,K71-J71)) -> 0 | R71: 0 | S71: 0 | T71: =IF(OR(O71="Lunch",O71="Recess",AND(R71=1,S71=1,O71="Passing")), 0, IF(P71>Q71,(Q71+0.5)-P71,Q71-P71)) -> 0 | X71: 0 | Y71: 0 | Z71: =IF(OR(U71="Lunch",U71="Recess",AND(X71=1,Y71=1,U71="Passing")), 0, IF(V71>W71,(W71+0.5)-V71,W71-V71)) -> 0 | AD71: 0 | AE71: 0 | AF71: =IF(OR(AA71="Lunch",AA71="Recess",AND(AD71=1,AE71=1,AA71="Passing")), 0, IF(AB71>AC71,(AC71+0.5)-AB71,AC71-AB71)) -> 0 | AH71: 0
F72: 0 | G72: 0 | H72: 0 | L72: 0 | M72: 0 | N72: 0 | R72: 0 | S72: 0 | T72: 0 | X72: 0 | Y72: 0 | Z72: 0 | AD72: 0 | AE72: 0 | AF72: 0 | AH72: 0
F73: 0 | G73: 0 | H73: 0 | L73: 0 | M73: 0 | N73: 0 | R73: 0 | S73: 0 | T73: 0 | X73: 0 | Y73: 0 | Z73: 0 | AD73: 0 | AE73: 0 | AF73: 0 | AH73: 0 | AJ73: =IF(OR(ISNUMBER(SEARCH("*Period*",C73)),ISNUMBER(SEARCH("*Period*",I73)),ISNUMBER(SEARCH("*Period*",O73)),ISNUMBER(SEARCH("*Period*",U73)),ISNUMBER(SEARCH("*Period*",AA73))),INDIRECT("R"&TEXT(MIN(IF(COUNTIF(C73:AA73,C73:AA73)=MAX(COUNTIF(C73:AA73,C73:AA73)),ROW(C73:AA73)*1000+COLUMN(C73:AA73))),"0\C000"),0),"") ->  | AM73: =IF(AJ73="","",VALUE(LEFT(AJ73,1))) -> 
F74: 0 | G74: 0 | H74: =IF(OR(C74="Lunch",C74="Recess",AND(F74=1,G74=1,C74="Passing")), 0, IF(D74>E74,(E74+0.5)-D74,E74-D74)) -> 0 | L74: 0 | M74: 0 | N74: =IF(OR(I74="Lunch",I74="Recess",AND(L74=1,M74=1,I74="Passing")), 0, IF(J74>K74,(K74+0.5)-J74,K74-J74)) -> 0 | R74: 0 | S74: 0 | T74: =IF(OR(O74="Lunch",O74="Recess",AND(R74=1,S74=1,O74="Passing")), 0, IF(P74>Q74,(Q74+0.5)-P74,Q74-P74)) -> 0 | X74: 0 | Y74: 0 | Z74: =IF(OR(U74="Lunch",U74="Recess",AND(X74=1,Y74=1,U74="Passing")), 0, IF(V74>W74,(W74+0.5)-V74,W74-V74)) -> 0 | AD74: 0 | AE74: 0 | AF74: =IF(OR(AA74="Lunch",AA74="Recess",AND(AD74=1,AE74=1,AA74="Passing")), 0, IF(AB74>AC74,(AC74+0.5)-AB74,AC74-AB74)) -> 0 | AH74: 0
F75: 0 | G75: 0 | H75: =IF(OR(C75="Lunch",C75="Recess",AND(F75=1,G75=1,C75="Passing")), 0, IF(D75>E75,(E75+0.5)-D75,E75-D75)) -> 0 | L75: 0 | M75: 0 | N75: =IF(OR(I75="Lunch",I75="Recess",AND(L75=1,M75=1,I75="Passing")), 0, IF(J75>K75,(K75+0.5)-J75,K75-J75)) -> 0 | R75: 0 | S75: 0 | T75: =IF(OR(O75="Lunch",O75="Recess",AND(R75=1,S75=1,O75="Passing")), 0, IF(P75>Q75,(Q75+0.5)-P75,Q75-P75)) -> 0 | X75: 0 | Y75: 0 | Z75: =IF(OR(U75="Lunch",U75="Recess",AND(X75=1,Y75=1,U75="Passing")), 0, IF(V75>W75,(W75+0.5)-V75,W75-V75)) -> 0 | AD75: 0 | AE75: 0 | AF75: =IF(OR(AA75="Lunch",AA75="Recess",AND(AD75=1,AE75=1,AA75="Passing")), 0, IF(AB75>AC75,(AC75+0.5)-AB75,AC75-AB75)) -> 0 | AH75: 0
F76: 0 | G76: 0 | H76: 0 | L76: 0 | M76: 0 | N76: 0 | R76: 0 | S76: 0 | T76: 0 | X76: 0 | Y76: 0 | Z76: 0 | AD76: 0 | AE76: 0 | AF76: 0 | AH76: 0
F77: 0 | G77: =COUNTIF(H75,">"&"00") -> 0 | H77: 0 | L77: 0 | M77: =COUNTIF(N75,">"&"00") -> 0 | N77: 0 | R77: 0 | S77: =COUNTIF(T75,">"&"00") -> 0 | T77: 0 | X77: 0 | Y77: =COUNTIF(Z75,">"&"00") -> 0 | Z77: 0 | AD77: 0 | AE77: =COUNTIF(AF75,">"&"00") -> 0 | AF77: 0 | AH77: 0 | AJ77: =IF(OR(ISNUMBER(SEARCH("*Period*",C77)),ISNUMBER(SEARCH("*Period*",I77)),ISNUMBER(SEARCH("*Period*",O77)),ISNUMBER(SEARCH("*Period*",U77)),ISNUMBER(SEARCH("*Period*",AA77))),INDIRECT("R"&TEXT(MIN(IF(COUNTIF(C77:AA77,C77:AA77)=MAX(COUNTIF(C77:AA77,C77:AA77)),ROW(C77:AA77)*1000+COLUMN(C77:AA77))),"0\C000"),0),"") ->  | AM77: =IF(AJ77="","",VALUE(LEFT(AJ77,1))) -> 
F78: 0 | G78: =COUNTIF(H76,">"&"00") -> 0 | H78: =IF(OR(C78="Lunch",C78="Recess",AND(F78=1,G78=1,C78="Passing")), 0, IF(D78>E78,(E78+0.5)-D78,E78-D78)) -> 0 | L78: 0 | M78: =COUNTIF(N76,">"&"00") -> 0 | N78: =IF(OR(I78="Lunch",I78="Recess",AND(L78=1,M78=1,I78="Passing")), 0, IF(J78>K78,(K78+0.5)-J78,K78-J78)) -> 0 | R78: 0 | S78: =COUNTIF(T76,">"&"00") -> 0 | T78: =IF(OR(O78="Lunch",O78="Recess",AND(R78=1,S78=1,O78="Passing")), 0, IF(P78>Q78,(Q78+0.5)-P78,Q78-P78)) -> 0 | X78: 0 | Y78: =COUNTIF(Z76,">"&"00") -> 0 | Z78: =IF(OR(U78="Lunch",U78="Recess",AND(X78=1,Y78=1,U78="Passing")), 0, IF(V78>W78,(W78+0.5)-V78,W78-V78)) -> 0 | AD78: 0 | AE78: =COUNTIF(AF76,">"&"00") -> 0 | AF78: =IF(OR(AA78="Lunch",AA78="Recess",AND(AD78=1,AE78=1,AA78="Passing")), 0, IF(AB78>AC78,(AC78+0.5)-AB78,AC78-AB78)) -> 0 | AH78: 0
F79: 0 | G79: =COUNTIF(H77,">"&"00") -> 0 | H79: =IF(OR(C79="Lunch",C79="Recess",AND(F79=1,G79=1,C79="Passing")), 0, IF(D79>E79,(E79+0.5)-D79,E79-D79)) -> 0 | L79: 0 | M79: =COUNTIF(N77,">"&"00") -> 0 | N79: =IF(OR(I79="Lunch",I79="Recess",AND(L79=1,M79=1,I79="Passing")), 0, IF(J79>K79,(K79+0.5)-J79,K79-J79)) -> 0 | R79: 0 | S79: =COUNTIF(T77,">"&"00") -> 0 | T79: =IF(OR(O79="Lunch",O79="Recess",AND(R79=1,S79=1,O79="Passing")), 0, IF(P79>Q79,(Q79+0.5)-P79,Q79-P79)) -> 0 | X79: 0 | Y79: =COUNTIF(Z77,">"&"00") -> 0 | Z79: =IF(OR(U79="Lunch",U79="Recess",AND(X79=1,Y79=1,U79="Passing")), 0, IF(V79>W79,(W79+0.5)-V79,W79-V79)) -> 0 | AD79: 0 | AE79: =COUNTIF(AF77,">"&"00") -> 0 | AF79: =IF(OR(AA79="Lunch",AA79="Recess",AND(AD79=1,AE79=1,AA79="Passing")), 0, IF(AB79>AC79,(AC79+0.5)-AB79,AC79-AB79)) -> 0 | AH79: 0
F80: 0 | G80: =COUNTIF(H78,">"&"00") -> 0 | H80: 0 | L80: 0 | M80: =COUNTIF(N78,">"&"00") -> 0 | N80: 0 | R80: 0 | S80: =COUNTIF(T78,">"&"00") -> 0 | T80: 0 | X80: 0 | Y80: =COUNTIF(Z78,">"&"00") -> 0 | Z80: 0 | AD80: 0 | AE80: =COUNTIF(AF78,">"&"00") -> 0 | AF80: 0 | AH80: 0
F81: 0 | G81: 0 | H81: 0 | L81: 0 | M81: 0 | N81: 0 | R81: 0 | S81: 0 | T81: 0 | X81: 0 | Y81: 0 | Z81: 0 | AD81: 0 | AE81: 0 | AF81: 0 | AH81: 0
F82: 0 | G82: 0 | H82: 0 | L82: 0 | M82: 0 | N82: 0 | R82: 0 | S82: 0 | T82: 0 | X82: 0 | Y82: 0 | Z82: 0 | AD82: 0 | AE82: 0 | AF82: 0 | AH82: 0
F83: 0 | G83: 0 | H83: 0 | L83: 0 | M83: 0 | N83: 0 | R83: 0 | S83: 0 | T83: 0 | X83: 0 | Y83: 0 | Z83: 0 | AD83: 0 | AE83: 0 | AF83: 0 | AH83: 0
F84: 0 | G84: 0 | H84: 0 | L84: 0 | M84: 0 | N84: 0 | R84: 0 | S84: 0 | T84: 0 | X84: 0 | Y84: 0 | Z84: 0 | AD84: 0 | AE84: 0 | AF84: 0 | AH84: 0
F85: 0 | G85: 0 | H85: 0 | L85: 0 | M85: 0 | N85: 0 | R85: 0 | S85: 0 | T85: 0 | X85: 0 | Y85: 0 | Z85: 0 | AD85: 0 | AE85: 0 | AF85: 0 | AH85: 0
F86: 0 | G86: 0 | H86: 0 | L86: 0 | M86: 0 | N86: 0 | R86: 0 | S86: 0 | T86: 0 | X86: 0 | Y86: 0 | Z86: 0 | AD86: 0 | AE86: 0 | AF86: 0 | AH86: 0
F87: 0 | G87: 0 | H87: 0 | L87: 0 | M87: 0 | N87: 0 | R87: 0 | S87: 0 | T87: 0 | X87: 0 | Y87: 0 | Z87: 0 | AD87: 0 | AE87: 0 | AF87: 0 | AH87: 0
F88: 0 | G88: 0 | H88: 0 | L88: 0 | M88: 0 | N88: 0 | R88: 0 | S88: 0 | T88: 0 | X88: 0 | Y88: 0 | Z88: 0 | AD88: 0 | AE88: 0 | AF88: 0 | AH88: 0
F89: 0 | G89: 0 | H89: 0 | L89: 0 | M89: 0 | N89: 0 | R89: 0 | S89: 0 | T89: 0 | X89: 0 | Y89: 0 | Z89: 0 | AD89: 0 | AE89: 0 | AF89: 0 | AH89: 0
F90: 0 | G90: 0 | H90: 0 | L90: 0 | M90: 0 | N90: 0 | R90: 0 | S90: 0 | T90: 0 | X90: 0 | Y90: 0 | Z90: 0 | AD90: 0 | AE90: 0 | AF90: 0 | AH90: 0
F91: 0 | G91: 0 | H91: 0 | L91: 0 | M91: 0 | N91: 0 | R91: 0 | S91: 0 | T91: 0 | X91: 0 | Y91: 0 | Z91: 0 | AD91: 0 | AE91: 0 | AF91: 0 | AH91: 0
E94: Total Minutes | H94: =SUM(H57:H93) -> 0 | K94: Total Minutes | N94: =SUM(N57:N93) -> 0 | Q94: Total Minutes | T94: =SUM(T57:T93) -> 0 | W94: Total Minutes | Z94: =SUM(Z57:Z93) -> 0 | AC94: Total Minutes | AF94: =SUM(AF57:AF93) -> 0 | AH94: =ROUND(((H94+N94+T94+Z94+AF94+H51+N51+T51+Z51+AF51)/10)*1440,0)/1440 -> 0
C97: Notes
B110: 1116 Hour Building Log Updated 6/29/2023 Kansas leads the world in the success of each student.

Sheet Example 1
A6: Bell Schedule Calculator
A7: Block Schedule
C10: 19/20 | O10: USD 1001 | AB10: Sunflower High
C11: School Year | O11: District | AB11: Building
C14: WEEK 1
C15: Monday | I15: Tuesday | O15: Wednesday | U15: Thursday | AA15: Friday | AH15: Daily Average Minutes for Week 1 | AI15: CTE Contact Minutes
C16: Type | D16: Start | E16: End | I16: Type | J16: Start | K16: End | O16: Type | P16: Start | Q16: End | U16: Type | V16: Start | W16: End | AA16: Type | AB16: Start | AC16: End | AJ16: P-test | AK16: Period | AL16: Seq | AM16: P Num | AN16: Contact | AO16: Seminar
C17: of Time | D17: Time | E17: Time | H17: Min | I17: of Time | J17: Time | K17: Time | N17: Min | O17: of Time | P17: Time | Q17: Time | T17: Min | U17: of Time | V17: Time | W17: Time | Z17: Min | AA17: of Time | AB17: Time | AC17: Time | AF17: Min
C18: 1st period | D18: 06:50:00 | E18: 07:46:00 | F18: =COUNTIF(C17,"="&"Lunch") -> 0 | G18: =COUNTIF(H16,">"&"00") -> 0 | H18: =IF(OR(C18="Lunch",C18="Recess",AND(F18=1,G18=1,C18="Passing")), 0, IF(D18>E18,(E18+0.5)-D18,E18-D18)) -> 0.03888888889 | I18: 1st period | J18: 06:50:00 | K18: 07:46:00 | L18: =COUNTIF(I17,"="&"Lunch") -> 0 | M18: =COUNTIF(N16,">"&"00") -> 0 | N18: =IF(OR(I18="Lunch",I18="Recess",AND(L18=1,M18=1,I18="Passing")), 0, IF(J18>K18,(K18+0.5)-J18,K18-J18)) -> 0.03888888889 | O18: 1st period | P18: 06:50:00 | Q18: 07:46:00 | R18: =COUNTIF(O17,"="&"Lunch") -> 0 | S18: =COUNTIF(T16,">"&"00") -> 0 | T18: =IF(OR(O18="Lunch",O18="Recess",AND(R18=1,S18=1,O18="Passing")), 0, IF(P18>Q18,(Q18+0.5)-P18,Q18-P18)) -> 0.03888888889 | U18: 1st period | V18: 06:50:00 | W18: 07:46:00 | X18: =COUNTIF(U17,"="&"Lunch") -> 0 | Y18: =COUNTIF(Z16,">"&"00") -> 0 | Z18: =IF(OR(U18="Lunch",U18="Recess",AND(X18=1,Y18=1,U18="Passing")), 0, IF(V18>W18,(W18+0.5)-V18,W18-V18)) -> 0.03888888889 | AA18: 1st period | AB18: 06:50:00 | AC18: 07:37:00 | AD18: =COUNTIF(AA17,"="&"Lunch") -> 0 | AE18: =COUNTIF(AF16,">"&"00") -> 0 | AF18: =IF(OR(AA18="Lunch",AA18="Recess",AND(AD18=1,AE18=1,AA18="Passing")), 0, IF(AB18>AC18,(AC18+0.5)-AB18,AC18-AB18)) -> 0.03263888889 | AH18: =ROUND(((H18+N18+T18+Z18+AF18)/5)*1440,0)/1440 -> 0.0375 | AI18: =IF(OR(ISNUMBER(SEARCH("*Period*",C18)),ISNUMBER(SEARCH("*Period*",I18)),ISNUMBER(SEARCH("*Period*",O18)),ISNUMBER(SEARCH("*Period*",U18)),ISNUMBER(SEARCH("*Period*",AA18))),AH18,0) -> 0.0375 | AJ18: =IF(OR(ISNUMBER(SEARCH("*Period*",C18)),ISNUMBER(SEARCH("*Period*",I18)),ISNUMBER(SEARCH("*Period*",O18)),ISNUMBER(SEARCH("*Period*",U18)),ISNUMBER(SEARCH("*Period*",AA18))),INDIRECT("R"&TEXT(MIN(IF(COUNTIF(C18:AA18,C18:AA18)=MAX(COUNTIF(C18:AA18,C18:AA18)),ROW(C18:AA18)*1000+COLUMN(C18:AA18))),"0\C000"),0),"") -> 1st period | AK18: =IF(AJ18=0, AJ49,AJ18) -> 1st period | AL18: =IF(AM18=0,"",(MAX(AL$17:AL17)+1)*1) -> 1 | AM18: =IF(AK18="",0,REPLACE(AK18,SEARCH(" ",AK18,1),7,"")) -> 1st | AN18: =AI18 -> 0.0375 | AO18: =IF(OR(ISNUMBER(SEARCH("*Seminar*",C18)),ISNUMBER(SEARCH("*Seminar*",I18)),ISNUMBER(SEARCH("*Seminar*",O18)),ISNUMBER(SEARCH("*Seminar*",U18)),ISNUMBER(SEARCH("*Seminar*",AA18))),AH18,0) -> 0
C19: passing | D19: 07:46:00 | E19: 07:51:00 | F19: 0 | G19: 0 | H19: 0.003472222222 | I19: passing | J19: 07:46:00 | K19: 07:51:00 | L19: 0 | M19: 0 | N19: 0.003472222222 | O19: passing | P19: 07:46:00 | Q19: 07:51:00 | R19: 0 | S19: 0 | T19: 0.003472222222 | U19: passing | V19: 07:46:00 | W19: 07:51:00 | X19: 0 | Y19: 0 | Z19: 0.003472222222 | AA19: passing | AB19: 07:37:00 | AC19: 07:42:00 | AD19: 0 | AE19: 0 | AF19: 0.003472222222 | AH19: 0.003472222222 | AI19: 0 | AL19: =IF(AM19=0,"",(MAX(AL$17:AL18)+1)*1) ->  | AM19: 0 | AN19: 0 | AO19: 0
C20: 2nd period | D20: 07:51:00 | E20: 08:48:00 | F20: 0 | G20: 1 | H20: 0.03958333333 | I20: 2nd period | J20: 07:51:00 | K20: 08:48:00 | L20: 0 | M20: 1 | N20: 0.03958333333 | O20: 2nd period | P20: 07:51:00 | Q20: 08:48:00 | R20: 0 | S20: 1 | T20: 0.03958333333 | U20: 2nd period | V20: 07:51:00 | W20: 08:48:00 | X20: 0 | Y20: 1 | Z20: 0.03958333333 | AA20: 2nd period | AB20: 07:42:00 | AC20: 08:29:00 | AD20: 0 | AE20: 1 | AF20: 0.03263888889 | AH20: 0.03819444444 | AI20: 0.03819444444 | AJ20: 2nd period | AK20: 2nd period | AL20: =IF(AM20=0,"",(MAX(AL$17:AL19)+1)*1) -> 2 | AM20: 2nd | AN20: 0.03819444444 | AO20: 0
C21: passing | D21: 08:48:00 | E21: 08:53:00 | F21: 0 | G21: 1 | H21: 0.003472222222 | I21: passing | J21: 08:48:00 | K21: 08:53:00 | L21: 0 | M21: 1 | N21: 0.003472222222 | O21: passing | P21: 08:48:00 | Q21: 08:53:00 | R21: 0 | S21: 1 | T21: 0.003472222222 | U21: passing | V21: 08:48:00 | W21: 08:53:00 | X21: 0 | Y21: 1 | Z21: 0.003472222222 | AA21: passing | AB21: 08:29:00 | AC21: 08:34:00 | AD21: 0 | AE21: 1 | AF21: 0.003472222222 | AH21: 0.003472222222 | AI21: 0 | AL21: =IF(AM21=0,"",(MAX(AL$17:AL20)+1)*1) ->  | AM21: 0 | AN21: 0 | AO21: 0
C22: 3rd period | D22: 08:53:00 | E22: 09:48:00 | F22: 0 | G22: 1 | H22: 0.03819444444 | I22: 3rd period | J22: 08:53:00 | K22: 09:48:00 | L22: 0 | M22: 1 | N22: 0.03819444444 | O22: 3rd period | P22: 08:53:00 | Q22: 09:48:00 | R22: 0 | S22: 1 | T22: 0.03819444444 | U22: 3rd period | V22: 08:53:00 | W22: 09:48:00 | X22: 0 | Y22: 1 | Z22: 0.03819444444 | AA22: 3rd period | AB22: 08:34:00 | AC22: 09:21:00 | AD22: 0 | AE22: 1 | AF22: 0.03263888889 | AH22: 0.03680555556 | AI22: 0.03680555556 | AJ22: 3rd period | AK22: 3rd period | AL22: =IF(AM22=0,"",(MAX(AL$17:AL21)+1)*1) -> 3 | AM22: 3rd | AN22: 0.03680555556 | AO22: 0
C23: passing | D23: 09:48:00 | E23: 09:53:00 | F23: 0 | G23: 1 | H23: 0.003472222222 | I23: passing | J23: 09:48:00 | K23: 09:53:00 | L23: 0 | M23: 1 | N23: 0.003472222222 | O23: passing | P23: 09:48:00 | Q23: 09:53:00 | R23: 0 | S23: 1 | T23: 0.003472222222 | U23: passing | V23: 09:48:00 | W23: 09:53:00 | X23: 0 | Y23: 1 | Z23: 0.003472222222 | AA23: passing | AB23: 09:21:00 | AC23: 09:26:00 | AD23: 0 | AE23: 1 | AF23: 0.003472222222 | AH23: 0.003472222222 | AI23: 0 | AL23: =IF(AM23=0,"",(MAX(AL$17:AL22)+1)*1) ->  | AM23: 0 | AN23: 0 | AO23: 0
C24: 4th period | D24: 09:53:00 | E24: 10:48:00 | F24: 0 | G24: 1 | H24: 0.03819444444 | I24: 4th period | J24: 09:53:00 | K24: 10:48:00 | L24: 0 | M24: 1 | N24: 0.03819444444 | O24: 4th period | P24: 09:53:00 | Q24: 10:48:00 | R24: 0 | S24: 1 | T24: 0.03819444444 | U24: 4th period | V24: 09:53:00 | W24: 10:48:00 | X24: 0 | Y24: 1 | Z24: 0.03819444444 | AA24: 4th period | AB24: 09:26:00 | AC24: 10:13:00 | AD24: 0 | AE24: 1 | AF24: 0.03263888889 | AH24: 0.03680555556 | AI24: 0.03680555556 | AJ24: 4th period | AK24: 4th period | AL24: =IF(AM24=0,"",(MAX(AL$17:AL23)+1)*1) -> 4 | AM24: 4th | AN24: 0.03680555556 | AO24: 0
C25: passing | D25: 10:48:00 | E25: 10:48:00 | F25: 0 | G25: 1 | H25: 0 | I25: passing | J25: 10:48:00 | K25: 10:48:00 | L25: 0 | M25: 1 | N25: 0 | O25: passing | P25: 10:48:00 | Q25: 10:48:00 | R25: 0 | S25: 1 | T25: 0 | U25: passing | V25: 10:48:00 | W25: 10:48:00 | X25: 0 | Y25: 1 | Z25: 0 | AA25: passing | AB25: 10:13:00 | AC25: 10:18:00 | AD25: 0 | AE25: 1 | AF25: 0.003472222222 | AH25: 0.0006944444444 | AI25: 0 | AL25: =IF(AM25=0,"",(MAX(AL$17:AL24)+1)*1) ->  | AM25: 0 | AN25: 0 | AO25: 0
F26: 0 | G26: 1 | H26: 0 | L26: 0 | M26: 1 | N26: 0 | R26: 0 | S26: 1 | T26: 0 | X26: 0 | Y26: 1 | Z26: 0 | AA26: Advocacy | AB26: 10:18:00 | AC26: 11:14:00 | AD26: 0 | AE26: 1 | AF26: 0.03888888889 | AH26: 0.007638888889 | AI26: 0 | AL26: =IF(AM26=0,"",(MAX(AL$17:AL25)+1)*1) ->  | AM26: 0 | AN26: 0 | AO26: 0
F27: 0 | G27: =COUNTIF(H25,">"&"00") -> 0 | H27: =IF(OR(C27="Lunch",C27="Recess",AND(F27=1,G27=1,C27="Passing")), 0, IF(D27>E27,(E27+0.5)-D27,E27-D27)) -> 0 | L27: 0 | M27: =COUNTIF(N25,">"&"00") -> 0 | N27: =IF(OR(I27="Lunch",I27="Recess",AND(L27=1,M27=1,I27="Passing")), 0, IF(J27>K27,(K27+0.5)-J27,K27-J27)) -> 0 | R27: 0 | S27: =COUNTIF(T25,">"&"00") -> 0 | T27: =IF(OR(O27="Lunch",O27="Recess",AND(R27=1,S27=1,O27="Passing")), 0, IF(P27>Q27,(Q27+0.5)-P27,Q27-P27)) -> 0 | X27: 0 | Y27: =COUNTIF(Z25,">"&"00") -> 0 | Z27: =IF(OR(U27="Lunch",U27="Recess",AND(X27=1,Y27=1,U27="Passing")), 0, IF(V27>W27,(W27+0.5)-V27,W27-V27)) -> 0 | AA27: passing | AB27: 11:14:00 | AC27: 11:14:00 | AD27: 0 | AE27: =COUNTIF(AF25,">"&"00") -> 1 | AF27: =IF(OR(AA27="Lunch",AA27="Recess",AND(AD27=1,AE27=1,AA27="Passing")), 0, IF(AB27>AC27,(AC27+0.5)-AB27,AC27-AB27)) -> 0 | AH27: 0 | AI27: 0 | AL27: =IF(AM27=0,"",(MAX(AL$17:AL26)+1)*1) ->  | AM27: 0 | AN27: 0 | AO27: 0
C28: Lunch | D28: 10:48:00 | E28: 11:33:00 | F28: 0 | G28: =COUNTIF(H26,">"&"00") -> 0 | H28: =IF(OR(C28="Lunch",C28="Recess",AND(F28=1,G28=1,C28="Passing")), 0, IF(D28>E28,(E28+0.5)-D28,E28-D28)) -> 0 | I28: Lunch | J28: 10:48:00 | K28: 11:33:00 | L28: 0 | M28: =COUNTIF(N26,">"&"00") -> 0 | N28: =IF(OR(I28="Lunch",I28="Recess",AND(L28=1,M28=1,I28="Passing")), 0, IF(J28>K28,(K28+0.5)-J28,K28-J28)) -> 0 | O28: Lunch | P28: 10:48:00 | Q28: 11:33:00 | R28: 0 | S28: =COUNTIF(T26,">"&"00") -> 0 | T28: =IF(OR(O28="Lunch",O28="Recess",AND(R28=1,S28=1,O28="Passing")), 0, IF(P28>Q28,(Q28+0.5)-P28,Q28-P28)) -> 0 | U28: Lunch | V28: 10:48:00 | W28: 11:33:00 | X28: 0 | Y28: =COUNTIF(Z26,">"&"00") -> 0 | Z28: =IF(OR(U28="Lunch",U28="Recess",AND(X28=1,Y28=1,U28="Passing")), 0, IF(V28>W28,(W28+0.5)-V28,W28-V28)) -> 0 | AA28: Lunch | AB28: 11:14:00 | AC28: 11:59:00 | AD28: 0 | AE28: =COUNTIF(AF26,">"&"00") -> 1 | AF28: =IF(OR(AA28="Lunch",AA28="Recess",AND(AD28=1,AE28=1,AA28="Passing")), 0, IF(AB28>AC28,(AC28+0.5)-AB28,AC28-AB28)) -> 0 | AH28: 0 | AI28: 0 | AL28: =IF(AM28=0,"",(MAX(AL$17:AL27)+1)*1) ->  | AM28: 0 | AN28: 0 | AO28: 0
C29: passing | D29: 11:33:00 | E29: 11:33:00 | F29: 1 | G29: 0 | H29: 0 | I29: passing | J29: 11:33:00 | K29: 11:33:00 | L29: 1 | M29: 0 | N29: 0 | O29: passing | P29: 11:33:00 | Q29: 11:33:00 | R29: 1 | S29: 0 | T29: 0 | U29: passing | V29: 11:33:00 | W29: 11:33:00 | X29: 1 | Y29: 0 | Z29: 0 | AA29: passing | AB29: 11:59:00 | AC29: 11:59:00 | AD29: 1 | AE29: 0 | AF29: 0 | AH29: 0 | AI29: 0 | AL29: =IF(AM29=0,"",(MAX(AL$17:AL28)+1)*1) ->  | AM29: 0 | AN29: 0 | AO29: 0
C30: 5th period | D30: 11:33:00 | E30: 12:28:00 | F30: 0 | G30: 0 | H30: 0.03819444444 | I30: 5th period | J30: 11:33:00 | K30: 12:28:00 | L30: 0 | M30: 0 | N30: 0.03819444444 | O30: 5th period | P30: 11:33:00 | Q30: 12:28:00 | R30: 0 | S30: 0 | T30: 0.03819444444 | U30: 5th period | V30: 11:33:00 | W30: 12:28:00 | X30: 0 | Y30: 0 | Z30: 0.03819444444 | AA30: 5th period | AB30: 11:59:00 | AC30: 12:46:00 | AD30: 0 | AE30: 0 | AF30: 0.03263888889 | AH30: 0.03680555556 | AI30: 0.03680555556 | AJ30: 5th period | AK30: 5th period | AL30: =IF(AM30=0,"",(MAX(AL$17:AL29)+1)*1) -> 5 | AM30: 5th | AN30: 0.03680555556 | AO30: 0
C31: passing | D31: 12:28:00 | E31: 12:33:00 | F31: 0 | G31: 0 | H31: 0.003472222222 | I31: passing | J31: 12:28:00 | K31: 12:33:00 | L31: 0 | M31: 0 | N31: 0.003472222222 | O31: passing | P31: 12:28:00 | Q31: 12:33:00 | R31: 0 | S31: 0 | T31: 0.003472222222 | U31: passing | V31: 12:28:00 | W31: 12:33:00 | X31: 0 | Y31: 0 | Z31: 0.003472222222 | AA31: passing | AB31: 12:46:00 | AC31: 12:51:00 | AD31: 0 | AE31: 0 | AF31: 0.003472222222 | AH31: 0.003472222222 | AI31: 0 | AL31: =IF(AM31=0,"",(MAX(AL$17:AL30)+1)*1) ->  | AM31: 0 | AN31: 0 | AO31: 0
C32: 6th period | D32: 12:33:00 | E32: 01:28:00 | F32: 0 | G32: 1 | H32: 0.03819444444 | I32: 6th period | J32: 12:33:00 | K32: 01:28:00 | L32: 0 | M32: 1 | N32: 0.03819444444 | O32: 6th period | P32: 12:33:00 | Q32: 01:28:00 | R32: 0 | S32: 1 | T32: 0.03819444444 | U32: 6th period | V32: 12:33:00 | W32: 01:28:00 | X32: 0 | Y32: 1 | Z32: 0.03819444444 | AA32: 6th period | AB32: 12:51:00 | AC32: 01:38:00 | AD32: 0 | AE32: 1 | AF32: 0.03263888889 | AH32: 0.03680555556 | AI32: 0.03680555556 | AJ32: 6th period | AK32: 6th period | AL32: =IF(AM32=0,"",(MAX(AL$17:AL31)+1)*1) -> 6 | AM32: 6th | AN32: 0.03680555556 | AO32: 0
C33: passing | D33: 01:28:00 | E33: 01:33:00 | F33: 0 | G33: 1 | H33: 0.003472222222 | I33: passing | J33: 01:28:00 | K33: 01:33:00 | L33: 0 | M33: 1 | N33: 0.003472222222 | O33: passing | P33: 01:28:00 | Q33: 01:33:00 | R33: 0 | S33: 1 | T33: 0.003472222222 | U33: passing | V33: 01:28:00 | W33: 01:33:00 | X33: 0 | Y33: 1 | Z33: 0.003472222222 | AA33: passing | AB33: 01:38:00 | AC33: 01:43:00 | AD33: 0 | AE33: 1 | AF33: 0.003472222222 | AH33: 0.003472222222 | AI33: 0 | AL33: =IF(AM33=0,"",(MAX(AL$17:AL32)+1)*1) ->  | AM33: 0 | AN33: 0 | AO33: 0
C34: 7th period | D34: 01:33:00 | E34: 02:30:00 | F34: 0 | G34: 1 | H34: 0.03958333333 | I34: 7th period | J34: 01:33:00 | K34: 02:30:00 | L34: 0 | M34: 1 | N34: 0.03958333333 | O34: 7th period | P34: 01:33:00 | Q34: 02:30:00 | R34: 0 | S34: 1 | T34: 0.03958333333 | U34: 7th period | V34: 01:33:00 | W34: 02:30:00 | X34: 0 | Y34: 1 | Z34: 0.03958333333 | AA34: 7th period | AB34: 01:43:00 | AC34: 02:30:00 | AD34: 0 | AE34: 1 | AF34: 0.03263888889 | AH34: 0.03819444444 | AI34: 0.03819444444 | AJ34: 7th period | AK34: 7th period | AL34: =IF(AM34=0,"",(MAX(AL$17:AL33)+1)*1) -> 7 | AM34: 7th | AN34: 0.03819444444 | AO34: 0
F35: 0 | G35: 1 | H35: 0 | L35: 0 | M35: 1 | N35: 0 | R35: 0 | S35: 1 | T35: 0 | X35: 0 | Y35: 1 | Z35: 0 | AD35: 0 | AE35: 1 | AF35: 0 | AH35: 0 | AI35: 0 | AL35: =IF(AM35=0,"",(MAX(AL$17:AL34)+1)*1) ->  | AM35: 0 | AN35: 0 | AO35: 0
F36: 0 | G36: 1 | H36: 0 | L36: 0 | M36: 1 | N36: 0 | R36: 0 | S36: 1 | T36: 0 | X36: 0 | Y36: 1 | Z36: 0 | AD36: 0 | AE36: 1 | AF36: 0 | AH36: 0 | AI36: 0 | AL36: =IF(AM36=0,"",(MAX(AL$17:AL35)+1)*1) ->  | AM36: 0 | AN36: 0 | AO36: 0
F37: 0 | G37: 0 | H37: 0 | L37: 0 | M37: 0 | N37: 0 | R37: 0 | S37: 0 | T37: 0 | X37: 0 | Y37: 0 | Z37: 0 | AD37: 0 | AE37: 0 | AF37: 0 | AH37: 0 | AI37: 0 | AL37: =IF(AM37=0,"",(MAX(AL$17:AL36)+1)*1) ->  | AM37: 0 | AN37: 0 | AO37: 0
F38: 0 | G38: 0 | H38: 0 | L38: 0 | M38: 0 | N38: 0 | R38: 0 | S38: 0 | T38: 0 | X38: 0 | Y38: 0 | Z38: 0 | AD38: 0 | AE38: 0 | AF38: 0 | AH38: 0 | AI38: 0 | AL38: =IF(AM38=0,"",(MAX(AL$17:AL37)+1)*1) ->  | AM38: 0 | AN38: 0 | AO38: 0
F39: 0 | G39: 0 | H39: 0 | L39: 0 | M39: 0 | N39: 0 | R39: 0 | S39: 0 | T39: 0 | X39: 0 | Y39: 0 | Z39: 0 | AD39: 0 | AE39: 0 | AF39: 0 | AH39: 0 | AI39: 0 | AL39: =IF(AM39=0,"",(MAX(AL$17:AL38)+1)*1) ->  | AM39: 0 | AN39: 0 | AO39: 0
F40: 0 | G40: 0 | H40: 0 | L40: 0 | M40: 0 | N40: 0 | R40: 0 | S40: 0 | T40: 0 | X40: 0 | Y40: 0 | Z40: 0 | AD40: 0 | AE40: 0 | AF40: 0 | AH40: 0 | AI40: 0 | AL40: =IF(AM40=0,"",(MAX(AL$17:AL39)+1)*1) ->  | AM40: 0 | AN40: 0 | AO40: 0
E43: Total Minutes | H43: =SUM(H18:H42) -> 0.2881944444 | K43: Total Minutes | N43: =SUM(N18:N42) -> 0.2881944444 | Q43: Total Minutes | T43: =SUM(T18:T42) -> 0.2881944444 | W43: Total Minutes | Z43: =SUM(Z18:Z42) -> 0.2881944444 | AC43: Total Minutes | AF43: =SUM(AF18:AF42) -> 0.2881944444 | AH43: =ROUND(((H43+N43+T43+Z43+AF43)/5)*1440,0)/1440 -> 0.2881944444 | AI43: =SUM(AI18:AI40) -> 0.2611111111 | AO43: =SUM(AO18:AO40) -> 0
C45: WEEK 2
C46: Monday | I46: Tuesday | O46: Wednesday | U46: Thursday | AA46: Friday | AH46: Daily Average Minutes for Both Weeks
C47: Type | D47: Start | E47: End | I47: Type | J47: Start | K47: End | O47: Type | P47: Start | Q47: End | U47: Type | V47: Start | W47: End | AA47: Type | AB47: Start | AC47: End | AJ47: P-Test
C48: of Time | D48: Time | E48: Time | H48: Min | I48: of Time | J48: Time | K48: Time | N48: Min | O48: of Time | P48: Time | Q48: Time | T48: Min | U48: of Time | V48: Time | W48: Time | Z48: Min | AA48: of Time | AB48: Time | AC48: Time | AF48: Min
F49: =COUNTIF(C48,"="&"Lunch") -> 0 | G49: =COUNTIF(H47,">"&"00") -> 0 | H49: =IF(OR(C49="Lunch",C49="Recess",AND(F49=1,G49=1,C49="Passing")), 0, IF(D49>E49,(E49+0.5)-D49,E49-D49)) -> 0 | L49: =COUNTIF(I48,"="&"Lunch") -> 0 | M49: =COUNTIF(N47,">"&"00") -> 0 | N49: =IF(OR(I49="Lunch",I49="Recess",AND(L49=1,M49=1,I49="Passing")), 0, IF(J49>K49,(K49+0.5)-J49,K49-J49)) -> 0 | R49: =COUNTIF(O48,"="&"Lunch") -> 0 | S49: =COUNTIF(T47,">"&"00") -> 0 | T49: =IF(OR(O49="Lunch",O49="Recess",AND(R49=1,S49=1,O49="Passing")), 0, IF(P49>Q49,(Q49+0.5)-P49,Q49-P49)) -> 0 | X49: =COUNTIF(U48,"="&"Lunch") -> 0 | Y49: =COUNTIF(Z47,">"&"00") -> 0 | Z49: =IF(OR(U49="Lunch",U49="Recess",AND(X49=1,Y49=1,U49="Passing")), 0, IF(V49>W49,(W49+0.5)-V49,W49-V49)) -> 0 | AD49: =COUNTIF(AA48,"="&"Lunch") -> 0 | AE49: =COUNTIF(AF47,">"&"00") -> 0 | AF49: =IF(OR(AA49="Lunch",AA49="Recess",AND(AD49=1,AE49=1,AA49="Passing")), 0, IF(AB49>AC49,(AC49+0.5)-AB49,AC49-AB49)) -> 0 | AH49: =ROUND(((H49+N49+T49+Z49+AF49+H18+N18+T18+Z18+AF18)/10)*1440,0)/1440 -> 0.01875 | AJ49: =IF(OR(ISNUMBER(SEARCH("*Period*",C49)),ISNUMBER(SEARCH("*Period*",I49)),ISNUMBER(SEARCH("*Period*",O49)),ISNUMBER(SEARCH("*Period*",U49)),ISNUMBER(SEARCH("*Period*",AA49))),INDIRECT("R"&TEXT(MIN(IF(COUNTIF(C49:AA49,C49:AA49)=MAX(COUNTIF(C49:AA49,C49:AA49)),ROW(C49:AA49)*1000+COLUMN(C49:AA49))),"0\C000"),0),"") ->  | AM49: =IF(AJ49="","",VALUE(LEFT(AJ49,1))) -> 
F50: 0 | G50: 0 | H50: 0 | L50: 0 | M50: 0 | N50: 0 | R50: 0 | S50: 0 | T50: 0 | X50: 0 | Y50: 0 | Z50: 0 | AD50: 0 | AE50: 0 | AF50: 0 | AH50: 0.001388888889
F51: 0 | G51: 0 | H51: 0 | L51: 0 | M51: 0 | N51: 0 | R51: 0 | S51: 0 | T51: 0 | X51: 0 | Y51: 0 | Z51: 0 | AD51: 0 | AE51: 0 | AF51: 0 | AH51: 0.01944444444
F52: 0 | G52: 0 | H52: 0 | L52: 0 | M52: 0 | N52: 0 | R52: 0 | S52: 0 | T52: 0 | X52: 0 | Y52: 0 | Z52: 0 | AD52: 0 | AE52: 0 | AF52: 0 | AH52: 0.001388888889
F53: 0 | G53: 0 | H53: 0 | L53: 0 | M53: 0 | N53: 0 | R53: 0 | S53: 0 | T53: 0 | X53: 0 | Y53: 0 | Z53: 0 | AD53: 0 | AE53: 0 | AF53: 0 | AH53: 0.01875
F54: 0 | G54: 0 | H54: 0 | L54: 0 | M54: 0 | N54: 0 | R54: 0 | S54: 0 | T54: 0 | X54: 0 | Y54: 0 | Z54: 0 | AD54: 0 | AE54: 0 | AF54: 0 | AH54: 0.001388888889
F55: 0 | G55: 0 | H55: 0 | L55: 0 | M55: 0 | N55: 0 | R55: 0 | S55: 0 | T55: 0 | X55: 0 | Y55: 0 | Z55: 0 | AD55: 0 | AE55: 0 | AF55: 0 | AH55: 0.01875
F56: 0 | G56: 0 | H56: 0 | L56: 0 | M56: 0 | N56: 0 | R56: 0 | S56: 0 | T56: 0 | X56: 0 | Y56: 0 | Z56: 0 | AD56: 0 | AE56: 0 | AF56: 0 | AH56: 0.0006944444444
F57: 0 | G57: 0 | H57: 0 | L57: 0 | M57: 0 | N57: 0 | R57: 0 | S57: 0 | T57: 0 | X57: 0 | Y57: 0 | Z57: 0 | AD57: 0 | AE57: 0 | AF57: 0 | AH57: 0.004166666667
F58: 0 | G58: =COUNTIF(H56,">"&"00") -> 0 | H58: =IF(OR(C58="Lunch",C58="Recess",AND(F58=1,G58=1,C58="Passing")), 0, IF(D58>E58,(E58+0.5)-D58,E58-D58)) -> 0 | L58: 0 | M58: =COUNTIF(N56,">"&"00") -> 0 | N58: =IF(OR(I58="Lunch",I58="Recess",AND(L58=1,M58=1,I58="Passing")), 0, IF(J58>K58,(K58+0.5)-J58,K58-J58)) -> 0 | R58: 0 | S58: =COUNTIF(T56,">"&"00") -> 0 | T58: =IF(OR(O58="Lunch",O58="Recess",AND(R58=1,S58=1,O58="Passing")), 0, IF(P58>Q58,(Q58+0.5)-P58,Q58-P58)) -> 0 | X58: 0 | Y58: =COUNTIF(Z56,">"&"00") -> 0 | Z58: =IF(OR(U58="Lunch",U58="Recess",AND(X58=1,Y58=1,U58="Passing")), 0, IF(V58>W58,(W58+0.5)-V58,W58-V58)) -> 0 | AD58: 0 | AE58: =COUNTIF(AF56,">"&"00") -> 0 | AF58: =IF(OR(AA58="Lunch",AA58="Recess",AND(AD58=1,AE58=1,AA58="Passing")), 0, IF(AB58>AC58,(AC58+0.5)-AB58,AC58-AB58)) -> 0 | AH58: 0
F59: 0 | G59: =COUNTIF(H57,">"&"00") -> 0 | H59: =IF(OR(C59="Lunch",C59="Recess",AND(F59=1,G59=1,C59="Passing")), 0, IF(D59>E59,(E59+0.5)-D59,E59-D59)) -> 0 | L59: 0 | M59: =COUNTIF(N57,">"&"00") -> 0 | N59: =IF(OR(I59="Lunch",I59="Recess",AND(L59=1,M59=1,I59="Passing")), 0, IF(J59>K59,(K59+0.5)-J59,K59-J59)) -> 0 | R59: 0 | S59: =COUNTIF(T57,">"&"00") -> 0 | T59: =IF(OR(O59="Lunch",O59="Recess",AND(R59=1,S59=1,O59="Passing")), 0, IF(P59>Q59,(Q59+0.5)-P59,Q59-P59)) -> 0 | X59: 0 | Y59: =COUNTIF(Z57,">"&"00") -> 0 | Z59: =IF(OR(U59="Lunch",U59="Recess",AND(X59=1,Y59=1,U59="Passing")), 0, IF(V59>W59,(W59+0.5)-V59,W59-V59)) -> 0 | AD59: 0 | AE59: =COUNTIF(AF57,">"&"00") -> 0 | AF59: =IF(OR(AA59="Lunch",AA59="Recess",AND(AD59=1,AE59=1,AA59="Passing")), 0, IF(AB59>AC59,(AC59+0.5)-AB59,AC59-AB59)) -> 0 | AH59: 0
F60: 0 | G60: 0 | H60: 0 | L60: 0 | M60: 0 | N60: 0 | R60: 0 | S60: 0 | T60: 0 | X60: 0 | Y60: 0 | Z60: 0 | AD60: 0 | AE60: 0 | AF60: 0 | AH60: 0
F61: 0 | G61: 0 | H61: 0 | L61: 0 | M61: 0 | N61: 0 | R61: 0 | S61: 0 | T61: 0 | X61: 0 | Y61: 0 | Z61: 0 | AD61: 0 | AE61: 0 | AF61: 0 | AH61: 0.01875
F62: 0 | G62: 0 | H62: 0 | L62: 0 | M62: 0 | N62: 0 | R62: 0 | S62: 0 | T62: 0 | X62: 0 | Y62: 0 | Z62: 0 | AD62: 0 | AE62: 0 | AF62: 0 | AH62: 0.001388888889
F63: 0 | G63: 0 | H63: 0 | L63: 0 | M63: 0 | N63: 0 | R63: 0 | S63: 0 | T63: 0 | X63: 0 | Y63: 0 | Z63: 0 | AD63: 0 | AE63: 0 | AF63: 0 | AH63: 0.01875
F64: 0 | G64: 0 | H64: 0 | L64: 0 | M64: 0 | N64: 0 | R64: 0 | S64: 0 | T64: 0 | X64: 0 | Y64: 0 | Z64: 0 | AD64: 0 | AE64: 0 | AF64: 0 | AH64: 0.002083333333
F65: 0 | G65: 0 | H65: 0 | L65: 0 | M65: 0 | N65: 0 | R65: 0 | S65: 0 | T65: 0 | X65: 0 | Y65: 0 | Z65: 0 | AD65: 0 | AE65: 0 | AF65: 0 | AH65: 0.01944444444
F66: 0 | G66: 0 | H66: 0 | L66: 0 | M66: 0 | N66: 0 | R66: 0 | S66: 0 | T66: 0 | X66: 0 | Y66: 0 | Z66: 0 | AD66: 0 | AE66: 0 | AF66: 0 | AH66: 0
F67: 0 | G67: 0 | H67: 0 | L67: 0 | M67: 0 | N67: 0 | R67: 0 | S67: 0 | T67: 0 | X67: 0 | Y67: 0 | Z67: 0 | AD67: 0 | AE67: 0 | AF67: 0 | AH67: 0
F68: 0 | G68: 0 | H68: 0 | L68: 0 | M68: 0 | N68: 0 | R68: 0 | S68: 0 | T68: 0 | X68: 0 | Y68: 0 | Z68: 0 | AD68: 0 | AE68: 0 | AF68: 0 | AH68: 0
F69: 0 | G69: 0 | H69: 0 | L69: 0 | M69: 0 | N69: 0 | R69: 0 | S69: 0 | T69: 0 | X69: 0 | Y69: 0 | Z69: 0 | AD69: 0 | AE69: 0 | AF69: 0 | AH69: 0
F70: 0 | G70: 0 | H70: 0 | L70: 0 | M70: 0 | N70: 0 | R70: 0 | S70: 0 | T70: 0 | X70: 0 | Y70: 0 | Z70: 0 | AD70: 0 | AE70: 0 | AF70: 0 | AH70: 0
F71: 0 | G71: 0 | H71: 0 | L71: 0 | M71: 0 | N71: 0 | R71: 0 | S71: 0 | T71: 0 | X71: 0 | Y71: 0 | Z71: 0 | AD71: 0 | AE71: 0 | AF71: 0 | AH71: 0
E74: Total Minutes | H74: =SUM(H49:H73) -> 0 | K74: Total Minutes | N74: =SUM(N49:N73) -> 0 | Q74: Total Minutes | T74: =SUM(T49:T73) -> 0 | W74: Total Minutes | Z74: =SUM(Z49:Z73) -> 0 | AC74: Total Minutes | AF74: =SUM(AF49:AF73) -> 0 | AH74: =ROUND(((H43+N43+T43+Z43+AF43+H74+N74+T74+Z74+AF74)/10)*1440,0)/1440 -> 0.1444444444
A79: Bell Schedule Calculator Updated 6/10/20 Kansas leads the world in the success of each student.

Sheet Example 2
A6: Bell Schedule Calculator
A7: Block Schedule
C10: 19/20 | O10: USD 3001
C11: School Year | O11: District | AB11: Building
C14: WEEK 1
C15: Monday | I15: Tuesday | O15: Wednesday | U15: Thursday | AA15: Friday | AH15: Daily Average Minutes for Week 1 | AI15: CTE Contact Minutes
C16: Type | D16: Start | E16: End | I16: Type | J16: Start | K16: End | O16: Type | P16: Start | Q16: End | U16: Type | V16: Start | W16: End | AA16: Type | AB16: Start | AC16: End | AJ16: P-test | AK16: Period | AL16: Seq | AM16: P Num | AN16: Contact | AO16: Seminar
C17: of Time | D17: Time | E17: Time | H17: Min | I17: of Time | J17: Time | K17: Time | N17: Min | O17: of Time | P17: Time | Q17: Time | T17: Min | U17: of Time | V17: Time | W17: Time | Z17: Min | AA17: of Time | AB17: Time | AC17: Time | AF17: Min
C18: 1st period | D18: 07:50:00 | E18: 09:20:00 | F18: =COUNTIF(C17,"="&"Lunch") -> 0 | G18: =COUNTIF(H16,">"&"00") -> 0 | H18: =IF(OR(C18="Lunch",C18="Recess",AND(F18=1,G18=1,C18="Passing")), 0, IF(D18>E18,(E18+0.5)-D18,E18-D18)) -> 0.0625 | L18: =COUNTIF(I17,"="&"Lunch") -> 0 | M18: =COUNTIF(N16,">"&"00") -> 0 | N18: =IF(OR(I18="Lunch",I18="Recess",AND(L18=1,M18=1,I18="Passing")), 0, IF(J18>K18,(K18+0.5)-J18,K18-J18)) -> 0 | O18: 1st period | P18: 07:50:00 | Q18: 09:20:00 | R18: =COUNTIF(O17,"="&"Lunch") -> 0 | S18: =COUNTIF(T16,">"&"00") -> 0 | T18: =IF(OR(O18="Lunch",O18="Recess",AND(R18=1,S18=1,O18="Passing")), 0, IF(P18>Q18,(Q18+0.5)-P18,Q18-P18)) -> 0.0625 | X18: =COUNTIF(U17,"="&"Lunch") -> 0 | Y18: =COUNTIF(Z16,">"&"00") -> 0 | Z18: =IF(OR(U18="Lunch",U18="Recess",AND(X18=1,Y18=1,U18="Passing")), 0, IF(V18>W18,(W18+0.5)-V18,W18-V18)) -> 0 | AA18: 1st period | AB18: 07:50:00 | AC18: 09:20:00 | AD18: =COUNTIF(AA17,"="&"Lunch") -> 0 | AE18: =COUNTIF(AF16,">"&"00") -> 0 | AF18: =IF(OR(AA18="Lunch",AA18="Recess",AND(AD18=1,AE18=1,AA18="Passing")), 0, IF(AB18>AC18,(AC18+0.5)-AB18,AC18-AB18)) -> 0.0625 | AH18: =ROUND(((H18+N18+T18+Z18+AF18)/5)*1440,0)/1440 -> 0.0375 | AI18: =IF(OR(ISNUMBER(SEARCH("*Period*",C18)),ISNUMBER(SEARCH("*Period*",I18)),ISNUMBER(SEARCH("*Period*",O18)),ISNUMBER(SEARCH("*Period*",U18)),ISNUMBER(SEARCH("*Period*",AA18))),AH18,0) -> 0.0375 | AJ18: =IF(OR(ISNUMBER(SEARCH("*Period*",C18)),ISNUMBER(SEARCH("*Period*",I18)),ISNUMBER(SEARCH("*Period*",O18)),ISNUMBER(SEARCH("*Period*",U18)),ISNUMBER(SEARCH("*Period*",AA18))),INDIRECT("R"&TEXT(MIN(IF(COUNTIF(C18:AA18,C18:AA18)=MAX(COUNTIF(C18:AA18,C18:AA18)),ROW(C18:AA18)*1000+COLUMN(C18:AA18))),"0\C000"),0),"") -> 1st period | AK18: =IF(AJ18=0, AJ49,AJ18) -> 1st period | AL18: =IF(AM18=0,"",(MAX(AL$17:AL17)+1)*1) -> 1 | AM18: =IF(AK18="",0,REPLACE(AK18,SEARCH(" ",AK18,1),7,"")) -> 1st | AN18: =AI18 -> 0.0375 | AO18: =IF(OR(ISNUMBER(SEARCH("*Seminar*",C18)),ISNUMBER(SEARCH("*Seminar*",I18)),ISNUMBER(SEARCH("*Seminar*",O18)),ISNUMBER(SEARCH("*Seminar*",U18)),ISNUMBER(SEARCH("*Seminar*",AA18))),AH18,0) -> 0
C19: passing | D19: 09:20:00 | E19: 09:25:00 | F19: 0 | G19: 0 | H19: 0.003472222222 | L19: 0 | M19: 0 | N19: 0 | O19: passing | P19: 09:20:00 | Q19: 09:25:00 | R19: 0 | S19: 0 | T19: 0.003472222222 | X19: 0 | Y19: 0 | Z19: 0 | AA19: passing | AB19: 09:20:00 | AC19: 09:25:00 | AD19: 0 | AE19: 0 | AF19: 0.003472222222 | AH19: 0.002083333333 | AI19: 0 | AL19: =IF(AM19=0,"",(MAX(AL$17:AL18)+1)*1) ->  | AM19: 0 | AN19: 0 | AO19: 0
F20: 0 | G20: 1 | H20: 0 | I20: 2nd period | J20: 07:50:00 | K20: 09:20:00 | L20: 0 | M20: 0 | N20: 0.0625 | R20: 0 | S20: 1 | T20: 0 | U20: 2nd period | V20: 07:50:00 | W20: 09:20:00 | X20: 0 | Y20: 0 | Z20: 0.0625 | AD20: 0 | AE20: 1 | AF20: 0 | AH20: 0.025 | AI20: 0.025 | AJ20: 0 | AK20: 2nd period | AL20: =IF(AM20=0,"",(MAX(AL$17:AL19)+1)*1) -> 2 | AM20: 2nd | AN20: 0.025 | AO20: 0
F21: 0 | G21: 1 | H21: 0 | I21: passing | J21: 09:20:00 | K21: 09:25:00 | L21: 0 | M21: 0 | N21: 0.003472222222 | R21: 0 | S21: 1 | T21: 0 | U21: passing | V21: 09:20:00 | W21: 09:25:00 | X21: 0 | Y21: 0 | Z21: 0.003472222222 | AD21: 0 | AE21: 1 | AF21: 0 | AH21: 0.001388888889 | AI21: 0 | AL21: =IF(AM21=0,"",(MAX(AL$17:AL20)+1)*1) ->  | AM21: 0 | AN21: 0 | AO21: 0
C22: 3rd period | D22: 09:25:00 | E22: 10:55:00 | F22: 0 | G22: 0 | H22: 0.0625 | L22: 0 | M22: 1 | N22: 0 | O22: 3rd period | P22: 09:25:00 | Q22: 10:55:00 | R22: 0 | S22: 0 | T22: 0.0625 | X22: 0 | Y22: 1 | Z22: 0 | AA22: 3rd period | AB22: 09:25:00 | AC22: 10:55:00 | AD22: 0 | AE22: 0 | AF22: 0.0625 | AH22: 0.0375 | AI22: 0.0375 | AJ22: 3rd period | AK22: 3rd period | AL22: =IF(AM22=0,"",(MAX(AL$17:AL21)+1)*1) -> 3 | AM22: 3rd | AN22: 0.0375 | AO22: 0
C23: passing | D23: 10:55:00 | E23: 10:55:00 | F23: 0 | G23: 0 | H23: 0 | L23: 0 | M23: 1 | N23: 0 | O23: passing | P23: 10:55:00 | Q23: 10:55:00 | R23: 0 | S23: 0 | T23: 0 | X23: 0 | Y23: 1 | Z23: 0 | AA23: passing | AB23: 10:55:00 | AC23: 10:55:00 | AD23: 0 | AE23: 0 | AF23: 0 | AH23: 0 | AI23: 0 | AL23: =IF(AM23=0,"",(MAX(AL$17:AL22)+1)*1) ->  | AM23: 0 | AN23: 0 | AO23: 0
F24: 0 | G24: 1 | H24: 0 | I24: 4th period | J24: 09:25:00 | K24: 10:55:00 | L24: 0 | M24: 0 | N24: 0.0625 | R24: 0 | S24: 1 | T24: 0 | U24: 4th period | V24: 09:25:00 | W24: 10:55:00 | X24: 0 | Y24: 0 | Z24: 0.0625 | AD24: 0 | AE24: 1 | AF24: 0 | AH24: 0.025 | AI24: 0.025 | AJ24: 0 | AK24: 4th period | AL24: =IF(AM24=0,"",(MAX(AL$17:AL23)+1)*1) -> 4 | AM24: 4thd | AN24: 0.025 | AO24: 0
F25: 0 | G25: 0 | H25: 0 | I25: passing | J25: 10:55:00 | K25: 10:55:00 | L25: 0 | M25: 0 | N25: 0 | R25: 0 | S25: 0 | T25: 0 | U25: passing | V25: 10:55:00 | W25: 10:55:00 | X25: 0 | Y25: 0 | Z25: 0 | AD25: 0 | AE25: 0 | AF25: 0 | AH25: 0 | AI25: 0 | AL25: =IF(AM25=0,"",(MAX(AL$17:AL24)+1)*1) ->  | AM25: 0 | AN25: 0 | AO25: 0
C26: Lunch | D26: 10:55:00 | E26: 11:35:00 | F26: 0 | G26: 0 | H26: 0 | I26: Lunch | J26: 10:55:00 | K26: 11:35:00 | L26: 0 | M26: 1 | N26: 0 | O26: Lunch | P26: 10:55:00 | Q26: 11:35:00 | R26: 0 | S26: 0 | T26: 0 | U26: Lunch | V26: 10:55:00 | W26: 11:35:00 | X26: 0 | Y26: 1 | Z26: 0 | AA26: Lunch | AB26: 10:55:00 | AC26: 11:35:00 | AD26: 0 | AE26: 0 | AF26: 0 | AH26: 0 | AI26: 0 | AL26: =IF(AM26=0,"",(MAX(AL$17:AL25)+1)*1) ->  | AM26: 0 | AN26: 0 | AO26: 0
C27: passing | D27: 11:35:00 | E27: 11:40:00 | F27: 1 | G27: =COUNTIF(H25,">"&"00") -> 0 | H27: =IF(OR(C27="Lunch",C27="Recess",AND(F27=1,G27=1,C27="Passing")), 0, IF(D27>E27,(E27+0.5)-D27,E27-D27)) -> 0.003472222222 | I27: passing | J27: 11:35:00 | K27: 11:40:00 | L27: 1 | M27: =COUNTIF(N25,">"&"00") -> 0 | N27: =IF(OR(I27="Lunch",I27="Recess",AND(L27=1,M27=1,I27="Passing")), 0, IF(J27>K27,(K27+0.5)-J27,K27-J27)) -> 0.003472222222 | O27: passing | P27: 11:35:00 | Q27: 11:40:00 | R27: 1 | S27: =COUNTIF(T25,">"&"00") -> 0 | T27: =IF(OR(O27="Lunch",O27="Recess",AND(R27=1,S27=1,O27="Passing")), 0, IF(P27>Q27,(Q27+0.5)-P27,Q27-P27)) -> 0.003472222222 | U27: passing | V27: 11:35:00 | W27: 11:40:00 | X27: 1 | Y27: =COUNTIF(Z25,">"&"00") -> 0 | Z27: =IF(OR(U27="Lunch",U27="Recess",AND(X27=1,Y27=1,U27="Passing")), 0, IF(V27>W27,(W27+0.5)-V27,W27-V27)) -> 0.003472222222 | AA27: passing | AB27: 11:35:00 | AC27: 11:40:00 | AD27: 1 | AE27: =COUNTIF(AF25,">"&"00") -> 0 | AF27: =IF(OR(AA27="Lunch",AA27="Recess",AND(AD27=1,AE27=1,AA27="Passing")), 0, IF(AB27>AC27,(AC27+0.5)-AB27,AC27-AB27)) -> 0.003472222222 | AH27: 0.003472222222 | AI27: 0 | AL27: =IF(AM27=0,"",(MAX(AL$17:AL26)+1)*1) ->  | AM27: 0 | AN27: 0 | AO27: 0
C28: 5th | D28: 11:40:00 | E28: 01:10:00 | F28: 0 | G28: =COUNTIF(H26,">"&"00") -> 0 | H28: =IF(OR(C28="Lunch",C28="Recess",AND(F28=1,G28=1,C28="Passing")), 0, IF(D28>E28,(E28+0.5)-D28,E28-D28)) -> 0.0625 | L28: 0 | M28: =COUNTIF(N26,">"&"00") -> 0 | N28: =IF(OR(I28="Lunch",I28="Recess",AND(L28=1,M28=1,I28="Passing")), 0, IF(J28>K28,(K28+0.5)-J28,K28-J28)) -> 0 | O28: 5th | P28: 11:40:00 | Q28: 01:10:00 | R28: 0 | S28: =COUNTIF(T26,">"&"00") -> 0 | T28: =IF(OR(O28="Lunch",O28="Recess",AND(R28=1,S28=1,O28="Passing")), 0, IF(P28>Q28,(Q28+0.5)-P28,Q28-P28)) -> 0.0625 | X28: 0 | Y28: =COUNTIF(Z26,">"&"00") -> 0 | Z28: =IF(OR(U28="Lunch",U28="Recess",AND(X28=1,Y28=1,U28="Passing")), 0, IF(V28>W28,(W28+0.5)-V28,W28-V28)) -> 0 | AA28: 5th | AB28: 11:40:00 | AC28: 01:10:00 | AD28: 0 | AE28: =COUNTIF(AF26,">"&"00") -> 0 | AF28: =IF(OR(AA28="Lunch",AA28="Recess",AND(AD28=1,AE28=1,AA28="Passing")), 0, IF(AB28>AC28,(AC28+0.5)-AB28,AC28-AB28)) -> 0.0625 | AH28: 0.0375 | AI28: 0 | AL28: =IF(AM28=0,"",(MAX(AL$17:AL27)+1)*1) ->  | AM28: 0 | AN28: 0 | AO28: 0
C29: passing | D29: 01:10:00 | E29: 01:15:00 | F29: 0 | G29: 1 | H29: 0.003472222222 | L29: 0 | M29: 1 | N29: 0 | O29: passing | P29: 01:10:00 | Q29: 01:15:00 | R29: 0 | S29: 1 | T29: 0.003472222222 | X29: 0 | Y29: 1 | Z29: 0 | AA29: passing | AB29: 01:10:00 | AC29: 01:15:00 | AD29: 0 | AE29: 1 | AF29: 0.003472222222 | AH29: 0.002083333333 | AI29: 0 | AL29: =IF(AM29=0,"",(MAX(AL$17:AL28)+1)*1) ->  | AM29: 0 | AN29: 0 | AO29: 0
F30: 0 | G30: 1 | H30: 0 | I30: 6th period | J30: 11:40:00 | K30: 01:10:00 | L30: 0 | M30: 0 | N30: 0.0625 | R30: 0 | S30: 1 | T30: 0 | U30: 6th period | V30: 11:40:00 | W30: 01:10:00 | X30: 0 | Y30: 0 | Z30: 0.0625 | AD30: 0 | AE30: 1 | AF30: 0 | AH30: 0.025 | AI30: 0.025 | AJ30: 0 | AK30: 6th period | AL30: =IF(AM30=0,"",(MAX(AL$17:AL29)+1)*1) -> 5 | AM30: 6th | AN30: 0.025 | AO30: 0
F31: 0 | G31: 1 | H31: 0 | I31: passing | J31: 01:10:00 | K31: 01:15:00 | L31: 0 | M31: 0 | N31: 0.003472222222 | R31: 0 | S31: 1 | T31: 0 | U31: passing | V31: 01:10:00 | W31: 01:15:00 | X31: 0 | Y31: 0 | Z31: 0.003472222222 | AD31: 0 | AE31: 1 | AF31: 0 | AH31: 0.001388888889 | AI31: 0 | AL31: =IF(AM31=0,"",(MAX(AL$17:AL30)+1)*1) ->  | AM31: 0 | AN31: 0 | AO31: 0
C32: 7th period | D32: 01:15:00 | E32: 02:45:00 | F32: 0 | G32: 0 | H32: 0.0625 | L32: 0 | M32: 1 | N32: 0 | O32: 7th period | P32: 01:15:00 | Q32: 02:45:00 | R32: 0 | S32: 0 | T32: 0.0625 | X32: 0 | Y32: 1 | Z32: 0 | AA32: 7th period | AB32: 01:15:00 | AC32: 02:45:00 | AD32: 0 | AE32: 0 | AF32: 0.0625 | AH32: 0.0375 | AI32: 0.0375 | AJ32: 7th period | AK32: 7th period | AL32: =IF(AM32=0,"",(MAX(AL$17:AL31)+1)*1) -> 6 | AM32: 7th | AN32: 0.0375 | AO32: 0
C33: passing | D33: 02:45:00 | E33: 02:50:00 | F33: 0 | G33: 0 | H33: 0.003472222222 | L33: 0 | M33: 1 | N33: 0 | O33: passing | P33: 02:45:00 | Q33: 02:50:00 | R33: 0 | S33: 0 | T33: 0.003472222222 | X33: 0 | Y33: 1 | Z33: 0 | AA33: passing | AB33: 02:45:00 | AC33: 02:50:00 | AD33: 0 | AE33: 0 | AF33: 0.003472222222 | AH33: 0.002083333333 | AI33: 0 | AL33: =IF(AM33=0,"",(MAX(AL$17:AL32)+1)*1) ->  | AM33: 0 | AN33: 0 | AO33: 0
F34: 0 | G34: 1 | H34: 0 | I34: 8th period | J34: 01:15:00 | K34: 02:45:00 | L34: 0 | M34: 0 | N34: 0.0625 | R34: 0 | S34: 1 | T34: 0 | U34: 8th period | V34: 01:15:00 | W34: 02:45:00 | X34: 0 | Y34: 0 | Z34: 0.0625 | AD34: 0 | AE34: 1 | AF34: 0 | AH34: 0.025 | AI34: 0.025 | AJ34: 0 | AK34: 8th period | AL34: =IF(AM34=0,"",(MAX(AL$17:AL33)+1)*1) -> 7 | AM34: 8th | AN34: 0.025 | AO34: 0
F35: 0 | G35: 1 | H35: 0 | I35: passing | J35: 02:45:00 | K35: 02:50:00 | L35: 0 | M35: 0 | N35: 0.003472222222 | R35: 0 | S35: 1 | T35: 0 | U35: passing | V35: 02:45:00 | W35: 02:50:00 | X35: 0 | Y35: 0 | Z35: 0.003472222222 | AD35: 0 | AE35: 1 | AF35: 0 | AH35: 0.001388888889 | AI35: 0 | AL35: =IF(AM35=0,"",(MAX(AL$17:AL34)+1)*1) ->  | AM35: 0 | AN35: 0 | AO35: 0
C36: Seminar | D36: 02:50:00 | E36: 03:30:00 | F36: 0 | G36: 0 | H36: 0.02777777778 | I36: Seminar | J36: 02:50:00 | K36: 03:30:00 | L36: 0 | M36: 1 | N36: 0.02777777778 | O36: Seminar | P36: 02:50:00 | Q36: 03:30:00 | R36: 0 | S36: 0 | T36: 0.02777777778 | U36: Seminar | V36: 02:50:00 | W36: 03:30:00 | X36: 0 | Y36: 1 | Z36: 0.02777777778 | AA36: Seminar | AB36: 02:50:00 | AC36: 03:30:00 | AD36: 0 | AE36: 0 | AF36: 0.02777777778 | AH36: 0.02777777778 | AI36: 0 | AL36: =IF(AM36=0,"",(MAX(AL$17:AL35)+1)*1) ->  | AM36: 0 | AN36: 0 | AO36: 0.02777777778
F37: 0 | G37: 0 | H37: 0 | L37: 0 | M37: 1 | N37: 0 | R37: 0 | S37: 0 | T37: 0 | X37: 0 | Y37: 1 | Z37: 0 | AD37: 0 | AE37: 0 | AF37: 0 | AH37: 0 | AI37: 0 | AL37: =IF(AM37=0,"",(MAX(AL$17:AL36)+1)*1) ->  | AM37: 0 | AN37: 0 | AO37: 0
F38: 0 | G38: 1 | H38: 0 | L38: 0 | M38: 1 | N38: 0 | R38: 0 | S38: 1 | T38: 0 | X38: 0 | Y38: 1 | Z38: 0 | AD38: 0 | AE38: 1 | AF38: 0 | AH38: 0 | AI38: 0 | AL38: =IF(AM38=0,"",(MAX(AL$17:AL37)+1)*1) ->  | AM38: 0 | AN38: 0 | AO38: 0
F39: 0 | G39: 0 | H39: 0 | L39: 0 | M39: 0 | N39: 0 | R39: 0 | S39: 0 | T39: 0 | X39: 0 | Y39: 0 | Z39: 0 | AD39: 0 | AE39: 0 | AF39: 0 | AH39: 0 | AI39: 0 | AL39: =IF(AM39=0,"",(MAX(AL$17:AL38)+1)*1) ->  | AM39: 0 | AN39: 0 | AO39: 0
F40: 0 | G40: 0 | H40: 0 | L40: 0 | M40: 0 | N40: 0 | R40: 0 | S40: 0 | T40: 0 | X40: 0 | Y40: 0 | Z40: 0 | AD40: 0 | AE40: 0 | AF40: 0 | AH40: 0 | AI40: 0 | AL40: =IF(AM40=0,"",(MAX(AL$17:AL39)+1)*1) ->  | AM40: 0 | AN40: 0 | AO40: 0
E43: Total Minutes | H43: =SUM(H18:H42) -> 0.2916666667 | K43: Total Minutes | N43: =SUM(N18:N42) -> 0.2916666667 | Q43: Total Minutes | T43: =SUM(T18:T42) -> 0.2916666667 | W43: Total Minutes | Z43: =SUM(Z18:Z42) -> 0.2916666667 | AC43: Total Minutes | AF43: =SUM(AF18:AF42) -> 0.2916666667 | AH43: =ROUND(((H43+N43+T43+Z43+AF43)/5)*1440,0)/1440 -> 0.2916666667 | AI43: =SUM(AI18:AI40) -> 0.2125 | AO43: =SUM(AO18:AO40) -> 0.02777777778
C45: WEEK 2
C46: Monday | I46: Tuesday | O46: Wednesday | U46: Thursday | AA46: Friday | AH46: Daily Average Minutes for Both Weeks
C47: Type | D47: Start | E47: End | I47: Type | J47: Start | K47: End | O47: Type | P47: Start | Q47: End | U47: Type | V47: Start | W47: End | AA47: Type | AB47: Start | AC47: End | AJ47: P-Test
C48: of Time | D48: Time | E48: Time | H48: Min | I48: of Time | J48: Time | K48: Time | N48: Min | O48: of Time | P48: Time | Q48: Time | T48: Min | U48: of Time | V48: Time | W48: Time | Z48: Min | AA48: of Time | AB48: Time | AC48: Time | AF48: Min
F49: =COUNTIF(C48,"="&"Lunch") -> 0 | G49: =COUNTIF(H47,">"&"00") -> 0 | H49: =IF(OR(C49="Lunch",C49="Recess",AND(F49=1,G49=1,C49="Passing")), 0, IF(D49>E49,(E49+0.5)-D49,E49-D49)) -> 0 | I49: 1st period | J49: 07:50:00 | K49: 09:20:00 | L49: =COUNTIF(I48,"="&"Lunch") -> 0 | M49: =COUNTIF(N47,">"&"00") -> 0 | N49: =IF(OR(I49="Lunch",I49="Recess",AND(L49=1,M49=1,I49="Passing")), 0, IF(J49>K49,(K49+0.5)-J49,K49-J49)) -> 0.0625 | R49: =COUNTIF(O48,"="&"Lunch") -> 0 | S49: =COUNTIF(T47,">"&"00") -> 0 | T49: =IF(OR(O49="Lunch",O49="Recess",AND(R49=1,S49=1,O49="Passing")), 0, IF(P49>Q49,(Q49+0.5)-P49,Q49-P49)) -> 0 | U49: 1st period | V49: 07:50:00 | W49: 09:20:00 | X49: =COUNTIF(U48,"="&"Lunch") -> 0 | Y49: =COUNTIF(Z47,">"&"00") -> 0 | Z49: =IF(OR(U49="Lunch",U49="Recess",AND(X49=1,Y49=1,U49="Passing")), 0, IF(V49>W49,(W49+0.5)-V49,W49-V49)) -> 0.0625 | AD49: =COUNTIF(AA48,"="&"Lunch") -> 0 | AE49: =COUNTIF(AF47,">"&"00") -> 0 | AF49: =IF(OR(AA49="Lunch",AA49="Recess",AND(AD49=1,AE49=1,AA49="Passing")), 0, IF(AB49>AC49,(AC49+0.5)-AB49,AC49-AB49)) -> 0 | AH49: =ROUND(((H49+N49+T49+Z49+AF49+H18+N18+T18+Z18+AF18)/10)*1440,0)/1440 -> 0.03125 | AJ49: =IF(OR(ISNUMBER(SEARCH("*Period*",C49)),ISNUMBER(SEARCH("*Period*",I49)),ISNUMBER(SEARCH("*Period*",O49)),ISNUMBER(SEARCH("*Period*",U49)),ISNUMBER(SEARCH("*Period*",AA49))),INDIRECT("R"&TEXT(MIN(IF(COUNTIF(C49:AA49,C49:AA49)=MAX(COUNTIF(C49:AA49,C49:AA49)),ROW(C49:AA49)*1000+COLUMN(C49:AA49))),"0\C000"),0),"") -> 0 | AM49: =IF(AJ49="","",VALUE(LEFT(AJ49,1))) -> 0
F50: 0 | G50: 0 | H50: 0 | I50: passing | J50: 09:20:00 | K50: 09:25:00 | L50: 0 | M50: 0 | N50: 0.003472222222 | R50: 0 | S50: 0 | T50: 0 | U50: passing | V50: 09:20:00 | W50: 09:25:00 | X50: 0 | Y50: 0 | Z50: 0.003472222222 | AD50: 0 | AE50: 0 | AF50: 0 | AH50: 0.001388888889
C51: 2nd period | D51: 07:50:00 | E51: 09:20:00 | F51: 0 | G51: 0 | H51: 0.0625 | L51: 0 | M51: 1 | N51: 0 | O51: 2nd period | P51: 07:50:00 | Q51: 09:20:00 | R51: 0 | S51: 0 | T51: 0.0625 | X51: 0 | Y51: 1 | Z51: 0 | AA51: 2nd period | AB51: 07:50:00 | AC51: 09:20:00 | AD51: 0 | AE51: 0 | AF51: 0.0625 | AH51: 0.03125 | AJ51: 2nd period | AM51: 2
C52: passing | D52: 09:20:00 | E52: 09:25:00 | F52: 0 | G52: 0 | H52: 0.003472222222 | L52: 0 | M52: 1 | N52: 0 | O52: passing | P52: 09:20:00 | Q52: 09:25:00 | R52: 0 | S52: 0 | T52: 0.003472222222 | X52: 0 | Y52: 1 | Z52: 0 | AA52: passing | AB52: 09:20:00 | AC52: 09:25:00 | AD52: 0 | AE52: 0 | AF52: 0.003472222222 | AH52: 0.001388888889
F53: 0 | G53: 1 | H53: 0 | I53: 3rd period | J53: 09:25:00 | K53: 10:55:00 | L53: 0 | M53: 0 | N53: 0.0625 | R53: 0 | S53: 1 | T53: 0 | U53: 3rd period | V53: 09:25:00 | W53: 10:55:00 | X53: 0 | Y53: 0 | Z53: 0.0625 | AD53: 0 | AE53: 1 | AF53: 0 | AH53: 0.03125 | AJ53: 0 | AM53: 0
F54: 0 | G54: 1 | H54: 0 | I54: passing | J54: 10:55:00 | K54: 10:55:00 | L54: 0 | M54: 0 | N54: 0 | R54: 0 | S54: 1 | T54: 0 | U54: passing | V54: 10:55:00 | W54: 10:55:00 | X54: 0 | Y54: 0 | Z54: 0 | AD54: 0 | AE54: 1 | AF54: 0 | AH54: 0
C55: 4th period | D55: 09:25:00 | E55: 10:55:00 | F55: 0 | G55: 0 | H55: 0.0625 | L55: 0 | M55: 1 | N55: 0 | O55: 4th period | P55: 09:25:00 | Q55: 10:55:00 | R55: 0 | S55: 0 | T55: 0.0625 | X55: 0 | Y55: 1 | Z55: 0 | AA55: 4th period | AB55: 09:25:00 | AC55: 10:55:00 | AD55: 0 | AE55: 0 | AF55: 0.0625 | AH55: 0.03125 | AJ55: 4th period | AM55: 4
C56: passing | D56: 10:55:00 | E56: 10:55:00 | F56: 0 | G56: 0 | H56: 0 | L56: 0 | M56: 0 | N56: 0 | O56: passing | P56: 10:55:00 | Q56: 10:55:00 | R56: 0 | S56: 0 | T56: 0 | X56: 0 | Y56: 0 | Z56: 0 | AA56: passing | AB56: 10:55:00 | AC56: 10:55:00 | AD56: 0 | AE56: 0 | AF56: 0 | AH56: 0
C57: Lunch | D57: 10:55:00 | E57: 11:35:00 | F57: 0 | G57: 1 | H57: 0 | I57: Lunch | J57: 10:55:00 | K57: 11:35:00 | L57: 0 | M57: 0 | N57: 0 | O57: Lunch | P57: 10:55:00 | Q57: 11:35:00 | R57: 0 | S57: 1 | T57: 0 | U57: Lunch | V57: 10:55:00 | W57: 11:35:00 | X57: 0 | Y57: 0 | Z57: 0 | AA57: Lunch | AB57: 10:55:00 | AC57: 11:35:00 | AD57: 0 | AE57: 1 | AF57: 0 | AH57: 0
C58: passing | D58: 11:35:00 | E58: 11:40:00 | F58: 1 | G58: =COUNTIF(H56,">"&"00") -> 0 | H58: =IF(OR(C58="Lunch",C58="Recess",AND(F58=1,G58=1,C58="Passing")), 0, IF(D58>E58,(E58+0.5)-D58,E58-D58)) -> 0.003472222222 | I58: passing | J58: 11:35:00 | K58: 11:40:00 | L58: 1 | M58: =COUNTIF(N56,">"&"00") -> 0 | N58: =IF(OR(I58="Lunch",I58="Recess",AND(L58=1,M58=1,I58="Passing")), 0, IF(J58>K58,(K58+0.5)-J58,K58-J58)) -> 0.003472222222 | O58: passing | P58: 11:35:00 | Q58: 11:40:00 | R58: 1 | S58: =COUNTIF(T56,">"&"00") -> 0 | T58: =IF(OR(O58="Lunch",O58="Recess",AND(R58=1,S58=1,O58="Passing")), 0, IF(P58>Q58,(Q58+0.5)-P58,Q58-P58)) -> 0.003472222222 | U58: passing | V58: 11:35:00 | W58: 11:40:00 | X58: 1 | Y58: =COUNTIF(Z56,">"&"00") -> 0 | Z58: =IF(OR(U58="Lunch",U58="Recess",AND(X58=1,Y58=1,U58="Passing")), 0, IF(V58>W58,(W58+0.5)-V58,W58-V58)) -> 0.003472222222 | AA58: passing | AB58: 11:35:00 | AC58: 11:40:00 | AD58: 1 | AE58: =COUNTIF(AF56,">"&"00") -> 0 | AF58: =IF(OR(AA58="Lunch",AA58="Recess",AND(AD58=1,AE58=1,AA58="Passing")), 0, IF(AB58>AC58,(AC58+0.5)-AB58,AC58-AB58)) -> 0.003472222222 | AH58: 0.003472222222
F59: 0 | G59: =COUNTIF(H57,">"&"00") -> 0 | H59: =IF(OR(C59="Lunch",C59="Recess",AND(F59=1,G59=1,C59="Passing")), 0, IF(D59>E59,(E59+0.5)-D59,E59-D59)) -> 0 | I59: 5th | J59: 11:40:00 | K59: 01:10:00 | L59: 0 | M59: =COUNTIF(N57,">"&"00") -> 0 | N59: =IF(OR(I59="Lunch",I59="Recess",AND(L59=1,M59=1,I59="Passing")), 0, IF(J59>K59,(K59+0.5)-J59,K59-J59)) -> 0.0625 | R59: 0 | S59: =COUNTIF(T57,">"&"00") -> 0 | T59: =IF(OR(O59="Lunch",O59="Recess",AND(R59=1,S59=1,O59="Passing")), 0, IF(P59>Q59,(Q59+0.5)-P59,Q59-P59)) -> 0 | U59: 5th | V59: 11:40:00 | W59: 01:10:00 | X59: 0 | Y59: =COUNTIF(Z57,">"&"00") -> 0 | Z59: =IF(OR(U59="Lunch",U59="Recess",AND(X59=1,Y59=1,U59="Passing")), 0, IF(V59>W59,(W59+0.5)-V59,W59-V59)) -> 0.0625 | AD59: 0 | AE59: =COUNTIF(AF57,">"&"00") -> 0 | AF59: =IF(OR(AA59="Lunch",AA59="Recess",AND(AD59=1,AE59=1,AA59="Passing")), 0, IF(AB59>AC59,(AC59+0.5)-AB59,AC59-AB59)) -> 0 | AH59: 0.03125
F60: 0 | G60: 1 | H60: 0 | I60: passing | J60: 01:10:00 | K60: 01:15:00 | L60: 0 | M60: 1 | N60: 0.003472222222 | R60: 0 | S60: 1 | T60: 0 | U60: passing | V60: 01:10:00 | W60: 01:15:00 | X60: 0 | Y60: 1 | Z60: 0.003472222222 | AD60: 0 | AE60: 1 | AF60: 0 | AH60: 0.002083333333
C61: 6th period | D61: 11:40:00 | E61: 01:10:00 | F61: 0 | G61: 0 | H61: 0.0625 | L61: 0 | M61: 1 | N61: 0 | O61: 6th period | P61: 11:40:00 | Q61: 01:10:00 | R61: 0 | S61: 0 | T61: 0.0625 | X61: 0 | Y61: 1 | Z61: 0 | AA61: 6th period | AB61: 11:40:00 | AC61: 01:10:00 | AD61: 0 | AE61: 0 | AF61: 0.0625 | AH61: 0.03125 | AJ61: 6th period | AM61: 6
C62: passing | D62: 01:10:00 | E62: 01:15:00 | F62: 0 | G62: 0 | H62: 0.003472222222 | L62: 0 | M62: 1 | N62: 0 | O62: passing | P62: 01:10:00 | Q62: 01:15:00 | R62: 0 | S62: 0 | T62: 0.003472222222 | X62: 0 | Y62: 1 | Z62: 0 | AA62: passing | AB62: 01:10:00 | AC62: 01:15:00 | AD62: 0 | AE62: 0 | AF62: 0.003472222222 | AH62: 0.002083333333
F63: 0 | G63: 1 | H63: 0 | I63: 7th period | J63: 01:15:00 | K63: 02:45:00 | L63: 0 | M63: 0 | N63: 0.0625 | R63: 0 | S63: 1 | T63: 0 | U63: 7th period | V63: 01:15:00 | W63: 02:45:00 | X63: 0 | Y63: 0 | Z63: 0.0625 | AD63: 0 | AE63: 1 | AF63: 0 | AH63: 0.03125 | AJ63: 0 | AM63: 0
F64: 0 | G64: 1 | H64: 0 | I64: passing | J64: 02:45:00 | K64: 02:50:00 | L64: 0 | M64: 0 | N64: 0.003472222222 | R64: 0 | S64: 1 | T64: 0 | U64: passing | V64: 02:45:00 | W64: 02:50:00 | X64: 0 | Y64: 0 | Z64: 0.003472222222 | AD64: 0 | AE64: 1 | AF64: 0 | AH64: 0.002083333333
C65: 8th period | D65: 01:15:00 | E65: 02:45:00 | F65: 0 | G65: 0 | H65: 0.0625 | L65: 0 | M65: 1 | N65: 0 | O65: 8th period | P65: 01:15:00 | Q65: 02:45:00 | R65: 0 | S65: 0 | T65: 0.0625 | X65: 0 | Y65: 1 | Z65: 0 | AA65: 8th period | AB65: 01:15:00 | AC65: 02:45:00 | AD65: 0 | AE65: 0 | AF65: 0.0625 | AH65: 0.03125 | AJ65: 8th period | AM65: 8
C66: passing | D66: 02:45:00 | E66: 02:50:00 | F66: 0 | G66: 0 | H66: 0.003472222222 | L66: 0 | M66: 1 | N66: 0 | O66: passing | P66: 02:45:00 | Q66: 02:50:00 | R66: 0 | S66: 0 | T66: 0.003472222222 | X66: 0 | Y66: 1 | Z66: 0 | AA66: passing | AB66: 02:45:00 | AC66: 02:50:00 | AD66: 0 | AE66: 0 | AF66: 0.003472222222 | AH66: 0.002083333333
C67: Seminar | D67: 02:50:00 | E67: 03:30:00 | F67: 0 | G67: 1 | H67: 0.02777777778 | I67: Seminar | J67: 02:50:00 | K67: 03:30:00 | L67: 0 | M67: 0 | N67: 0.02777777778 | O67: Seminar | P67: 02:50:00 | Q67: 03:30:00 | R67: 0 | S67: 1 | T67: 0.02777777778 | U67: Seminar | V67: 02:50:00 | W67: 03:30:00 | X67: 0 | Y67: 0 | Z67: 0.02777777778 | AA67: Seminar | AB67: 02:50:00 | AC67: 03:30:00 | AD67: 0 | AE67: 1 | AF67: 0.02777777778 | AH67: 0.02777777778
F68: 0 | G68: 1 | H68: 0 | L68: 0 | M68: 0 | N68: 0 | R68: 0 | S68: 1 | T68: 0 | X68: 0 | Y68: 0 | Z68: 0 | AD68: 0 | AE68: 1 | AF68: 0 | AH68: 0
F69: 0 | G69: 1 | H69: 0 | L69: 0 | M69: 1 | N69: 0 | R69: 0 | S69: 1 | T69: 0 | X69: 0 | Y69: 1 | Z69: 0 | AD69: 0 | AE69: 1 | AF69: 0 | AH69: 0
F70: 0 | G70: 0 | H70: 0 | L70: 0 | M70: 0 | N70: 0 | R70: 0 | S70: 0 | T70: 0 | X70: 0 | Y70: 0 | Z70: 0 | AD70: 0 | AE70: 0 | AF70: 0 | AH70: 0
F71: 0 | G71: 0 | H71: 0 | L71: 0 | M71: 0 | N71: 0 | R71: 0 | S71: 0 | T71: 0 | X71: 0 | Y71: 0 | Z71: 0 | AD71: 0 | AE71: 0 | AF71: 0 | AH71: 0
E74: Total Minutes | H74: =SUM(H49:H73) -> 0.2916666667 | K74: Total Minutes | N74: =SUM(N49:N73) -> 0.2916666667 | Q74: Total Minutes | T74: =SUM(T49:T73) -> 0.2916666667 | W74: Total Minutes | Z74: =SUM(Z49:Z73) -> 0.2916666667 | AC74: Total Minutes | AF74: =SUM(AF49:AF73) -> 0.2916666667 | AH74: =ROUND(((H43+N43+T43+Z43+AF43+H74+N74+T74+Z74+AF74)/10)*1440,0)/1440 -> 0.2916666667
A79: Bell Schedule Calculator Updated 6/10/20 Kansas leads the world in the success of each student.

Sheet Example 3
A8: Bell Schedule Calculator
A9: Block Schedule
C12: 19/20 | O12: USD 2001 | AB12: Meadowlark High
C13: School Year | O13: District | AB13: Building
C16: WEEK 1
C17: Monday | I17: Tuesday | O17: Wednesday | U17: Thursday | AA17: Friday | AH17: Daily Average Minutes for Week 1 | AI17: CTE Contact Minutes
C18: Type | D18: Start | E18: End | I18: Type | J18: Start | K18: End | O18: Type | P18: Start | Q18: End | U18: Type | V18: Start | W18: End | AA18: Type | AB18: Start | AC18: End | AJ18: P-test | AK18: Period | AL18: Seq | AM18: P Num | AN18: Contact | AO18: Seminar
C19: of Time | D19: Time | E19: Time | H19: Min | I19: of Time | J19: Time | K19: Time | N19: Min | O19: of Time | P19: Time | Q19: Time | T19: Min | U19: of Time | V19: Time | W19: Time | Z19: Min | AA19: of Time | AB19: Time | AC19: Time | AF19: Min
C20: 1st period | D20: 07:50:00 | E20: 09:20:00 | F20: =COUNTIF(C19,"="&"Lunch") -> 0 | G20: =COUNTIF(H18,">"&"00") -> 0 | H20: =IF(OR(C20="Lunch",C20="Recess",AND(F20=1,G20=1,C20="Passing")), 0, IF(D20>E20,(E20+0.5)-D20,E20-D20)) -> 0.0625 | L20: =COUNTIF(I19,"="&"Lunch") -> 0 | M20: =COUNTIF(N18,">"&"00") -> 0 | N20: =IF(OR(I20="Lunch",I20="Recess",AND(L20=1,M20=1,I20="Passing")), 0, IF(J20>K20,(K20+0.5)-J20,K20-J20)) -> 0 | O20: 1st period | P20: 07:50:00 | Q20: 09:20:00 | R20: =COUNTIF(O19,"="&"Lunch") -> 0 | S20: =COUNTIF(T18,">"&"00") -> 0 | T20: =IF(OR(O20="Lunch",O20="Recess",AND(R20=1,S20=1,O20="Passing")), 0, IF(P20>Q20,(Q20+0.5)-P20,Q20-P20)) -> 0.0625 | X20: =COUNTIF(U19,"="&"Lunch") -> 0 | Y20: =COUNTIF(Z18,">"&"00") -> 0 | Z20: =IF(OR(U20="Lunch",U20="Recess",AND(X20=1,Y20=1,U20="Passing")), 0, IF(V20>W20,(W20+0.5)-V20,W20-V20)) -> 0 | AA20: 1st period | AB20: 07:50:00 | AC20: 09:20:00 | AD20: =COUNTIF(AA19,"="&"Lunch") -> 0 | AE20: =COUNTIF(AF18,">"&"00") -> 0 | AF20: =IF(OR(AA20="Lunch",AA20="Recess",AND(AD20=1,AE20=1,AA20="Passing")), 0, IF(AB20>AC20,(AC20+0.5)-AB20,AC20-AB20)) -> 0.0625 | AH20: =ROUND(((H20+N20+T20+Z20+AF20)/5)*1440,0)/1440 -> 0.0375 | AI20: =IF(OR(ISNUMBER(SEARCH("*Period*",C20)),ISNUMBER(SEARCH("*Period*",I20)),ISNUMBER(SEARCH("*Period*",O20)),ISNUMBER(SEARCH("*Period*",U20)),ISNUMBER(SEARCH("*Period*",AA20))),AH20,0) -> 0.0375 | AJ20: =IF(OR(ISNUMBER(SEARCH("*Period*",C20)),ISNUMBER(SEARCH("*Period*",I20)),ISNUMBER(SEARCH("*Period*",O20)),ISNUMBER(SEARCH("*Period*",U20)),ISNUMBER(SEARCH("*Period*",AA20))),INDIRECT("R"&TEXT(MIN(IF(COUNTIF(C20:AA20,C20:AA20)=MAX(COUNTIF(C20:AA20,C20:AA20)),ROW(C20:AA20)*1000+COLUMN(C20:AA20))),"0\C000"),0),"") -> 1st period | AK20: =IF(AJ20=0, AJ51,AJ20) -> 1st period | AL20: =IF(AM20=0,"",(MAX(AL$19:AL19)+1)*1) -> 1 | AM20: =IF(AK20="",0,REPLACE(AK20,SEARCH(" ",AK20,1),7,"")) -> 1st | AN20: =AI20 -> 0.0375 | AO20: =IF(OR(ISNUMBER(SEARCH("*Seminar*",C20)),ISNUMBER(SEARCH("*Seminar*",I20)),ISNUMBER(SEARCH("*Seminar*",O20)),ISNUMBER(SEARCH("*Seminar*",U20)),ISNUMBER(SEARCH("*Seminar*",AA20))),AH20,0) -> 0
C21: passing | D21: 09:20:00 | E21: 09:30:00 | F21: 0 | G21: 0 | H21: 0.006944444444 | L21: 0 | M21: 0 | N21: 0 | O21: passing | P21: 09:20:00 | Q21: 09:30:00 | R21: 0 | S21: 0 | T21: 0.006944444444 | X21: 0 | Y21: 0 | Z21: 0 | AA21: passing | AB21: 09:20:00 | AC21: 09:30:00 | AD21: 0 | AE21: 0 | AF21: 0.006944444444 | AH21: 0.004166666667 | AI21: 0 | AL21: =IF(AM21=0,"",(MAX(AL$19:AL20)+1)*1) ->  | AM21: 0 | AN21: 0 | AO21: 0
F22: 0 | G22: 1 | H22: 0 | I22: 2nd period | J22: 07:50:00 | K22: 09:20:00 | L22: 0 | M22: 0 | N22: 0.0625 | R22: 0 | S22: 1 | T22: 0 | U22: 2nd period | V22: 07:50:00 | W22: 09:20:00 | X22: 0 | Y22: 0 | Z22: 0.0625 | AD22: 0 | AE22: 1 | AF22: 0 | AH22: 0.025 | AI22: 0.025 | AJ22: 0 | AK22: 2nd period | AL22: =IF(AM22=0,"",(MAX(AL$19:AL21)+1)*1) -> 2 | AM22: 2nd | AN22: 0.025 | AO22: 0
F23: 0 | G23: 1 | H23: 0 | I23: passing | J23: 09:20:00 | K23: 09:30:00 | L23: 0 | M23: 0 | N23: 0.006944444444 | R23: 0 | S23: 1 | T23: 0 | U23: passing | V23: 09:20:00 | W23: 09:30:00 | X23: 0 | Y23: 0 | Z23: 0.006944444444 | AD23: 0 | AE23: 1 | AF23: 0 | AH23: 0.002777777778 | AI23: 0 | AL23: =IF(AM23=0,"",(MAX(AL$19:AL22)+1)*1) ->  | AM23: 0 | AN23: 0 | AO23: 0
C24: 3rd period | D24: 09:30:00 | E24: 10:55:00 | F24: 0 | G24: 0 | H24: 0.05902777778 | L24: 0 | M24: 1 | N24: 0 | O24: 3rd period | P24: 09:30:00 | Q24: 10:55:00 | R24: 0 | S24: 0 | T24: 0.05902777778 | X24: 0 | Y24: 1 | Z24: 0 | AA24: 3rd period | AB24: 09:30:00 | AC24: 10:55:00 | AD24: 0 | AE24: 0 | AF24: 0.05902777778 | AH24: 0.03541666667 | AI24: 0.03541666667 | AJ24: 3rd period | AK24: 3rd period | AL24: =IF(AM24=0,"",(MAX(AL$19:AL23)+1)*1) -> 3 | AM24: 3rd | AN24: 0.03541666667 | AO24: 0
C25: passing | D25: 10:55:00 | E25: 11:00:00 | F25: 0 | G25: 0 | H25: 0.003472222222 | L25: 0 | M25: 1 | N25: 0 | O25: passing | P25: 10:55:00 | Q25: 11:00:00 | R25: 0 | S25: 0 | T25: 0.003472222222 | X25: 0 | Y25: 1 | Z25: 0 | AA25: passing | AB25: 10:55:00 | AC25: 11:00:00 | AD25: 0 | AE25: 0 | AF25: 0.003472222222 | AH25: 0.002083333333 | AI25: 0 | AL25: =IF(AM25=0,"",(MAX(AL$19:AL24)+1)*1) ->  | AM25: 0 | AN25: 0 | AO25: 0
F26: 0 | G26: 1 | H26: 0 | I26: 4th period | J26: 09:30:00 | K26: 10:55:00 | L26: 0 | M26: 0 | N26: 0.05902777778 | R26: 0 | S26: 1 | T26: 0 | U26: 4th period | V26: 09:30:00 | W26: 10:55:00 | X26: 0 | Y26: 0 | Z26: 0.05902777778 | AD26: 0 | AE26: 1 | AF26: 0 | AH26: 0.02361111111 | AI26: 0.02361111111 | AJ26: 0 | AK26: 4th period | AL26: =IF(AM26=0,"",(MAX(AL$19:AL25)+1)*1) -> 4 | AM26: 4thd | AN26: 0.02361111111 | AO26: 0
F27: 0 | G27: 1 | H27: 0 | I27: passing | J27: 10:55:00 | K27: 10:55:00 | L27: 0 | M27: 0 | N27: 0 | R27: 0 | S27: 1 | T27: 0 | U27: passing | V27: 10:55:00 | W27: 10:55:00 | X27: 0 | Y27: 0 | Z27: 0 | AD27: 0 | AE27: 1 | AF27: 0 | AH27: 0 | AI27: 0 | AL27: =IF(AM27=0,"",(MAX(AL$19:AL26)+1)*1) ->  | AM27: 0 | AN27: 0 | AO27: 0
C28: Lunch | D28: 11:00:00 | E28: 11:40:00 | F28: 0 | G28: 0 | H28: 0 | I28: Lunch | J28: 11:45:00 | K28: 01:05:00 | L28: 0 | M28: 1 | N28: 0 | O28: Lunch | P28: 11:00:00 | Q28: 11:40:00 | R28: 0 | S28: 0 | T28: 0 | U28: Lunch | V28: 11:45:00 | W28: 01:05:00 | X28: 0 | Y28: 1 | Z28: 0 | AA28: Lunch | AB28: 11:00:00 | AC28: 11:40:00 | AD28: 0 | AE28: 0 | AF28: 0 | AH28: 0 | AI28: 0 | AL28: =IF(AM28=0,"",(MAX(AL$19:AL27)+1)*1) ->  | AM28: 0 | AN28: 0 | AO28: 0
C29: passing | D29: 11:40:00 | E29: 11:40:00 | F29: 1 | G29: =COUNTIF(H27,">"&"00") -> 0 | H29: =IF(OR(C29="Lunch",C29="Recess",AND(F29=1,G29=1,C29="Passing")), 0, IF(D29>E29,(E29+0.5)-D29,E29-D29)) -> 0 | I29: passing | J29: 01:05:00 | K29: 01:15:00 | L29: 1 | M29: =COUNTIF(N27,">"&"00") -> 0 | N29: =IF(OR(I29="Lunch",I29="Recess",AND(L29=1,M29=1,I29="Passing")), 0, IF(J29>K29,(K29+0.5)-J29,K29-J29)) -> 0.006944444444 | O29: passing | P29: 11:40:00 | Q29: 11:40:00 | R29: 1 | S29: =COUNTIF(T27,">"&"00") -> 0 | T29: =IF(OR(O29="Lunch",O29="Recess",AND(R29=1,S29=1,O29="Passing")), 0, IF(P29>Q29,(Q29+0.5)-P29,Q29-P29)) -> 0 | U29: passing | V29: 01:05:00 | W29: 01:15:00 | X29: 1 | Y29: =COUNTIF(Z27,">"&"00") -> 0 | Z29: =IF(OR(U29="Lunch",U29="Recess",AND(X29=1,Y29=1,U29="Passing")), 0, IF(V29>W29,(W29+0.5)-V29,W29-V29)) -> 0.006944444444 | AA29: passing | AB29: 11:40:00 | AC29: 11:40:00 | AD29: 1 | AE29: =COUNTIF(AF27,">"&"00") -> 0 | AF29: =IF(OR(AA29="Lunch",AA29="Recess",AND(AD29=1,AE29=1,AA29="Passing")), 0, IF(AB29>AC29,(AC29+0.5)-AB29,AC29-AB29)) -> 0 | AH29: 0.002777777778 | AI29: 0 | AL29: =IF(AM29=0,"",(MAX(AL$19:AL28)+1)*1) ->  | AM29: 0 | AN29: 0 | AO29: 0
C30: 5th | D30: 11:40:00 | E30: 01:05:00 | F30: 0 | G30: =COUNTIF(H28,">"&"00") -> 0 | H30: =IF(OR(C30="Lunch",C30="Recess",AND(F30=1,G30=1,C30="Passing")), 0, IF(D30>E30,(E30+0.5)-D30,E30-D30)) -> 0.05902777778 | L30: 0 | M30: =COUNTIF(N28,">"&"00") -> 0 | N30: =IF(OR(I30="Lunch",I30="Recess",AND(L30=1,M30=1,I30="Passing")), 0, IF(J30>K30,(K30+0.5)-J30,K30-J30)) -> 0 | O30: 5th | P30: 11:40:00 | Q30: 01:05:00 | R30: 0 | S30: =COUNTIF(T28,">"&"00") -> 0 | T30: =IF(OR(O30="Lunch",O30="Recess",AND(R30=1,S30=1,O30="Passing")), 0, IF(P30>Q30,(Q30+0.5)-P30,Q30-P30)) -> 0.05902777778 | X30: 0 | Y30: =COUNTIF(Z28,">"&"00") -> 0 | Z30: =IF(OR(U30="Lunch",U30="Recess",AND(X30=1,Y30=1,U30="Passing")), 0, IF(V30>W30,(W30+0.5)-V30,W30-V30)) -> 0 | AA30: 5th | AB30: 11:40:00 | AC30: 01:05:00 | AD30: 0 | AE30: =COUNTIF(AF28,">"&"00") -> 0 | AF30: =IF(OR(AA30="Lunch",AA30="Recess",AND(AD30=1,AE30=1,AA30="Passing")), 0, IF(AB30>AC30,(AC30+0.5)-AB30,AC30-AB30)) -> 0.05902777778 | AH30: 0.03541666667 | AI30: 0 | AL30: =IF(AM30=0,"",(MAX(AL$19:AL29)+1)*1) ->  | AM30: 0 | AN30: 0 | AO30: 0
C31: passing | D31: 01:05:00 | E31: 01:15:00 | F31: 0 | G31: 0 | H31: 0.006944444444 | L31: 0 | M31: 1 | N31: 0 | O31: passing | P31: 01:05:00 | Q31: 01:15:00 | R31: 0 | S31: 0 | T31: 0.006944444444 | X31: 0 | Y31: 1 | Z31: 0 | AA31: passing | AB31: 01:05:00 | AC31: 01:15:00 | AD31: 0 | AE31: 0 | AF31: 0.006944444444 | AH31: 0.004166666667 | AI31: 0 | AL31: =IF(AM31=0,"",(MAX(AL$19:AL30)+1)*1) ->  | AM31: 0 | AN31: 0 | AO31: 0
F32: 0 | G32: 1 | H32: 0 | I32: 6th period | J32: 10:55:00 | K32: 11:40:00 | L32: 0 | M32: 0 | N32: 0.03125 | R32: 0 | S32: 1 | T32: 0 | U32: 6th period | V32: 10:55:00 | W32: 11:40:00 | X32: 0 | Y32: 0 | Z32: 0.03125 | AD32: 0 | AE32: 1 | AF32: 0 | AH32: 0.0125 | AI32: 0.0125 | AJ32: 0 | AK32: 6th period | AL32: =IF(AM32=0,"",(MAX(AL$19:AL31)+1)*1) -> 5 | AM32: 6th | AN32: 0.0125 | AO32: 0
F33: 0 | G33: 1 | H33: 0 | I33: passing | J33: 11:40:00 | K33: 11:45:00 | L33: 0 | M33: 0 | N33: 0.003472222222 | R33: 0 | S33: 1 | T33: 0 | U33: passing | V33: 11:40:00 | W33: 11:45:00 | X33: 0 | Y33: 0 | Z33: 0.003472222222 | AD33: 0 | AE33: 1 | AF33: 0 | AH33: 0.001388888889 | AI33: 0 | AL33: =IF(AM33=0,"",(MAX(AL$19:AL32)+1)*1) ->  | AM33: 0 | AN33: 0 | AO33: 0
C34: 7th period | D34: 01:15:00 | E34: 02:40:00 | F34: 0 | G34: 0 | H34: 0.05902777778 | L34: 0 | M34: 1 | N34: 0 | O34: 7th period | P34: 01:15:00 | Q34: 02:40:00 | R34: 0 | S34: 0 | T34: 0.05902777778 | X34: 0 | Y34: 1 | Z34: 0 | AA34: 7th period | AB34: 01:15:00 | AC34: 02:40:00 | AD34: 0 | AE34: 0 | AF34: 0.05902777778 | AH34: 0.03541666667 | AI34: 0.03541666667 | AJ34: 7th period | AK34: 7th period | AL34: =IF(AM34=0,"",(MAX(AL$19:AL33)+1)*1) -> 6 | AM34: 7th | AN34: 0.03541666667 | AO34: 0
C35: passing | D35: 02:40:00 | E35: 02:50:00 | F35: 0 | G35: 0 | H35: 0.006944444444 | L35: 0 | M35: 1 | N35: 0 | O35: passing | P35: 02:40:00 | Q35: 02:50:00 | R35: 0 | S35: 0 | T35: 0.006944444444 | X35: 0 | Y35: 1 | Z35: 0 | AA35: passing | AB35: 02:40:00 | AC35: 02:50:00 | AD35: 0 | AE35: 0 | AF35: 0.006944444444 | AH35: 0.004166666667 | AI35: 0 | AL35: =IF(AM35=0,"",(MAX(AL$19:AL34)+1)*1) ->  | AM35: 0 | AN35: 0 | AO35: 0
F36: 0 | G36: 1 | H36: 0 | I36: 8th period | J36: 01:15:00 | K36: 02:40:00 | L36: 0 | M36: 0 | N36: 0.05902777778 | R36: 0 | S36: 1 | T36: 0 | U36: 8th period | V36: 01:15:00 | W36: 02:40:00 | X36: 0 | Y36: 0 | Z36: 0.05902777778 | AD36: 0 | AE36: 1 | AF36: 0 | AH36: 0.02361111111 | AI36: 0.02361111111 | AJ36: 0 | AK36: 8th period | AL36: =IF(AM36=0,"",(MAX(AL$19:AL35)+1)*1) -> 7 | AM36: 8th | AN36: 0.02361111111 | AO36: 0
F37: 0 | G37: 1 | H37: 0 | I37: passing | J37: 02:40:00 | K37: 02:50:00 | L37: 0 | M37: 0 | N37: 0.006944444444 | R37: 0 | S37: 1 | T37: 0 | U37: passing | V37: 02:40:00 | W37: 02:50:00 | X37: 0 | Y37: 0 | Z37: 0.006944444444 | AD37: 0 | AE37: 1 | AF37: 0 | AH37: 0.002777777778 | AI37: 0 | AL37: =IF(AM37=0,"",(MAX(AL$19:AL36)+1)*1) ->  | AM37: 0 | AN37: 0 | AO37: 0
C38: 9th period | D38: 02:50:00 | E38: 03:30:00 | F38: 0 | G38: 0 | H38: 0.02777777778 | L38: 0 | M38: 1 | N38: 0 | O38: 9th period | P38: 02:50:00 | Q38: 03:30:00 | R38: 0 | S38: 0 | T38: 0.02777777778 | X38: 0 | Y38: 1 | Z38: 0 | AA38: 9th period | AB38: 02:50:00 | AC38: 03:30:00 | AD38: 0 | AE38: 0 | AF38: 0.02777777778 | AH38: 0.01666666667 | AI38: 0.01666666667 | AJ38: 9th period | AK38: 9th period | AL38: =IF(AM38=0,"",(MAX(AL$19:AL37)+1)*1) -> 8 | AM38: 9th | AN38: 0.01666666667 | AO38: 0
F39: 0 | G39: 0 | H39: 0 | L39: 0 | M39: 1 | N39: 0 | R39: 0 | S39: 0 | T39: 0 | X39: 0 | Y39: 1 | Z39: 0 | AD39: 0 | AE39: 0 | AF39: 0 | AH39: 0 | AI39: 0 | AL39: =IF(AM39=0,"",(MAX(AL$19:AL38)+1)*1) ->  | AM39: 0 | AN39: 0 | AO39: 0
F40: 0 | G40: 1 | H40: 0 | I40: 10th period | J40: 02:50:00 | K40: 03:30:00 | L40: 0 | M40: 0 | N40: 0.02777777778 | R40: 0 | S40: 1 | T40: 0 | U40: 10th period | V40: 02:50:00 | W40: 03:30:00 | X40: 0 | Y40: 0 | Z40: 0.02777777778 | AD40: 0 | AE40: 1 | AF40: 0 | AH40: 0.01111111111 | AI40: 0.01111111111 | AJ40: 0 | AK40: 10th period | AL40: =IF(AM40=0,"",(MAX(AL$19:AL39)+1)*1) -> 9 | AM40: 10th | AN40: 0.01111111111 | AO40: 0
F41: 0 | G41: 0 | H41: 0 | L41: 0 | M41: 0 | N41: 0 | R41: 0 | S41: 0 | T41: 0 | X41: 0 | Y41: 0 | Z41: 0 | AD41: 0 | AE41: 0 | AF41: 0 | AH41: 0 | AI41: 0 | AL41: =IF(AM41=0,"",(MAX(AL$19:AL40)+1)*1) ->  | AM41: 0 | AN41: 0 | AO41: 0
F42: 0 | G42: 0 | H42: 0 | L42: 0 | M42: 1 | N42: 0 | R42: 0 | S42: 0 | T42: 0 | X42: 0 | Y42: 1 | Z42: 0 | AD42: 0 | AE42: 0 | AF42: 0 | AH42: 0 | AI42: 0 | AL42: =IF(AM42=0,"",(MAX(AL$19:AL41)+1)*1) ->  | AM42: 0 | AN42: 0 | AO42: 0
E45: Total Minutes | H45: =SUM(H20:H44) -> 0.2916666667 | K45: Total Minutes | N45: =SUM(N20:N44) -> 0.2638888889 | Q45: Total Minutes | T45: =SUM(T20:T44) -> 0.2916666667 | W45: Total Minutes | Z45: =SUM(Z20:Z44) -> 0.2638888889 | AC45: Total Minutes | AF45: =SUM(AF20:AF44) -> 0.2916666667 | AH45: =ROUND(((H45+N45+T45+Z45+AF45)/5)*1440,0)/1440 -> 0.2805555556 | AI45: =SUM(AI20:AI42) -> 0.2208333333 | AO45: =SUM(AO20:AO42) -> 0
C47: WEEK 2
C48: Monday | I48: Tuesday | O48: Wednesday | U48: Thursday | AA48: Friday | AH48: Daily Average Minutes for Both Weeks
C49: Type | D49: Start | E49: End | I49: Type | J49: Start | K49: End | O49: Type | P49: Start | Q49: End | U49: Type | V49: Start | W49: End | AA49: Type | AB49: Start | AC49: End | AJ49: P-Test
C50: of Time | D50: Time | E50: Time | H50: Min | I50: of Time | J50: Time | K50: Time | N50: Min | O50: of Time | P50: Time | Q50: Time | T50: Min | U50: of Time | V50: Time | W50: Time | Z50: Min | AA50: of Time | AB50: Time | AC50: Time | AF50: Min
F51: =COUNTIF(C50,"="&"Lunch") -> 0 | G51: =COUNTIF(H49,">"&"00") -> 0 | H51: =IF(OR(C51="Lunch",C51="Recess",AND(F51=1,G51=1,C51="Passing")), 0, IF(D51>E51,(E51+0.5)-D51,E51-D51)) -> 0 | I51: 1st period | J51: 07:50:00 | K51: 09:20:00 | L51: =COUNTIF(I50,"="&"Lunch") -> 0 | M51: =COUNTIF(N49,">"&"00") -> 0 | N51: =IF(OR(I51="Lunch",I51="Recess",AND(L51=1,M51=1,I51="Passing")), 0, IF(J51>K51,(K51+0.5)-J51,K51-J51)) -> 0.0625 | R51: =COUNTIF(O50,"="&"Lunch") -> 0 | S51: =COUNTIF(T49,">"&"00") -> 0 | T51: =IF(OR(O51="Lunch",O51="Recess",AND(R51=1,S51=1,O51="Passing")), 0, IF(P51>Q51,(Q51+0.5)-P51,Q51-P51)) -> 0 | U51: 1st period | V51: 07:50:00 | W51: 09:20:00 | X51: =COUNTIF(U50,"="&"Lunch") -> 0 | Y51: =COUNTIF(Z49,">"&"00") -> 0 | Z51: =IF(OR(U51="Lunch",U51="Recess",AND(X51=1,Y51=1,U51="Passing")), 0, IF(V51>W51,(W51+0.5)-V51,W51-V51)) -> 0.0625 | AD51: =COUNTIF(AA50,"="&"Lunch") -> 0 | AE51: =COUNTIF(AF49,">"&"00") -> 0 | AF51: =IF(OR(AA51="Lunch",AA51="Recess",AND(AD51=1,AE51=1,AA51="Passing")), 0, IF(AB51>AC51,(AC51+0.5)-AB51,AC51-AB51)) -> 0 | AH51: =ROUND(((H51+N51+T51+Z51+AF51+H20+N20+T20+Z20+AF20)/10)*1440,0)/1440 -> 0.03125 | AJ51: =IF(OR(ISNUMBER(SEARCH("*Period*",C51)),ISNUMBER(SEARCH("*Period*",I51)),ISNUMBER(SEARCH("*Period*",O51)),ISNUMBER(SEARCH("*Period*",U51)),ISNUMBER(SEARCH("*Period*",AA51))),INDIRECT("R"&TEXT(MIN(IF(COUNTIF(C51:AA51,C51:AA51)=MAX(COUNTIF(C51:AA51,C51:AA51)),ROW(C51:AA51)*1000+COLUMN(C51:AA51))),"0\C000"),0),"") -> 0 | AM51: =IF(AJ51="","",VALUE(LEFT(AJ51,1))) -> 0
F52: 0 | G52: 0 | H52: 0 | I52: passing | J52: 09:20:00 | K52: 09:30:00 | L52: 0 | M52: 0 | N52: 0.006944444444 | R52: 0 | S52: 0 | T52: 0 | U52: passing | V52: 09:20:00 | W52: 09:30:00 | X52: 0 | Y52: 0 | Z52: 0.006944444444 | AD52: 0 | AE52: 0 | AF52: 0 | AH52: 0.003472222222
C53: 2nd period | D53: 07:50:00 | E53: 09:20:00 | F53: 0 | G53: 0 | H53: 0.0625 | L53: 0 | M53: 1 | N53: 0 | O53: 2nd period | P53: 07:50:00 | Q53: 09:20:00 | R53: 0 | S53: 0 | T53: 0.0625 | X53: 0 | Y53: 1 | Z53: 0 | AA53: 2nd period | AB53: 07:50:00 | AC53: 09:20:00 | AD53: 0 | AE53: 0 | AF53: 0.0625 | AH53: 0.03125 | AJ53: 2nd period | AM53: 2
C54: passing | D54: 09:20:00 | E54: 09:30:00 | F54: 0 | G54: 0 | H54: 0.006944444444 | L54: 0 | M54: 1 | N54: 0 | O54: passing | P54: 09:20:00 | Q54: 09:30:00 | R54: 0 | S54: 0 | T54: 0.006944444444 | X54: 0 | Y54: 1 | Z54: 0 | AA54: passing | AB54: 09:20:00 | AC54: 09:30:00 | AD54: 0 | AE54: 0 | AF54: 0.006944444444 | AH54: 0.003472222222
F55: 0 | G55: 1 | H55: 0 | I55: 3rd period | J55: 09:30:00 | K55: 10:55:00 | L55: 0 | M55: 0 | N55: 0.05902777778 | R55: 0 | S55: 1 | T55: 0 | U55: 3rd period | V55: 09:30:00 | W55: 10:55:00 | X55: 0 | Y55: 0 | Z55: 0.05902777778 | AD55: 0 | AE55: 1 | AF55: 0 | AH55: 0.02986111111 | AJ55: 0 | AM55: 0
F56: 0 | G56: 1 | H56: 0 | I56: passing | J56: 10:55:00 | K56: 11:00:00 | L56: 0 | M56: 0 | N56: 0.003472222222 | R56: 0 | S56: 1 | T56: 0 | U56: passing | V56: 10:55:00 | W56: 11:00:00 | X56: 0 | Y56: 0 | Z56: 0.003472222222 | AD56: 0 | AE56: 1 | AF56: 0 | AH56: 0.001388888889
C57: 4th period | D57: 09:30:00 | E57: 10:55:00 | F57: 0 | G57: 0 | H57: 0.05902777778 | L57: 0 | M57: 1 | N57: 0 | O57: 4th period | P57: 09:30:00 | Q57: 10:55:00 | R57: 0 | S57: 0 | T57: 0.05902777778 | X57: 0 | Y57: 1 | Z57: 0 | AA57: 4th period | AB57: 09:30:00 | AC57: 10:55:00 | AD57: 0 | AE57: 0 | AF57: 0.05902777778 | AH57: 0.02986111111 | AJ57: 4th period | AM57: 4
C58: passing | D58: 10:55:00 | E58: 10:55:00 | F58: 0 | G58: 0 | H58: 0 | L58: 0 | M58: 1 | N58: 0 | O58: passing | P58: 10:55:00 | Q58: 10:55:00 | R58: 0 | S58: 0 | T58: 0 | X58: 0 | Y58: 1 | Z58: 0 | AA58: passing | AB58: 10:55:00 | AC58: 10:55:00 | AD58: 0 | AE58: 0 | AF58: 0 | AH58: 0
C59: Lunch | D59: 11:45:00 | E59: 01:05:00 | F59: 0 | G59: 1 | H59: 0 | I59: Lunch | J59: 11:00:00 | K59: 11:40:00 | L59: 0 | M59: 0 | N59: 0 | O59: Lunch | P59: 11:45:00 | Q59: 01:05:00 | R59: 0 | S59: 1 | T59: 0 | U59: Lunch | V59: 11:00:00 | W59: 11:40:00 | X59: 0 | Y59: 0 | Z59: 0 | AA59: Lunch | AB59: 11:45:00 | AC59: 01:05:00 | AD59: 0 | AE59: 1 | AF59: 0 | AH59: 0
C60: passing | D60: 01:05:00 | E60: 01:15:00 | F60: 1 | G60: =COUNTIF(H58,">"&"00") -> 0 | H60: =IF(OR(C60="Lunch",C60="Recess",AND(F60=1,G60=1,C60="Passing")), 0, IF(D60>E60,(E60+0.5)-D60,E60-D60)) -> 0.006944444444 | I60: passing | J60: 11:40:00 | K60: 11:40:00 | L60: 1 | M60: =COUNTIF(N58,">"&"00") -> 0 | N60: =IF(OR(I60="Lunch",I60="Recess",AND(L60=1,M60=1,I60="Passing")), 0, IF(J60>K60,(K60+0.5)-J60,K60-J60)) -> 0 | O60: passing | P60: 01:05:00 | Q60: 01:15:00 | R60: 1 | S60: =COUNTIF(T58,">"&"00") -> 0 | T60: =IF(OR(O60="Lunch",O60="Recess",AND(R60=1,S60=1,O60="Passing")), 0, IF(P60>Q60,(Q60+0.5)-P60,Q60-P60)) -> 0.006944444444 | U60: passing | V60: 11:40:00 | W60: 11:40:00 | X60: 1 | Y60: =COUNTIF(Z58,">"&"00") -> 0 | Z60: =IF(OR(U60="Lunch",U60="Recess",AND(X60=1,Y60=1,U60="Passing")), 0, IF(V60>W60,(W60+0.5)-V60,W60-V60)) -> 0 | AA60: passing | AB60: 01:05:00 | AC60: 01:15:00 | AD60: 1 | AE60: =COUNTIF(AF58,">"&"00") -> 0 | AF60: =IF(OR(AA60="Lunch",AA60="Recess",AND(AD60=1,AE60=1,AA60="Passing")), 0, IF(AB60>AC60,(AC60+0.5)-AB60,AC60-AB60)) -> 0.006944444444 | AH60: 0.003472222222
F61: 0 | G61: =COUNTIF(H59,">"&"00") -> 0 | H61: =IF(OR(C61="Lunch",C61="Recess",AND(F61=1,G61=1,C61="Passing")), 0, IF(D61>E61,(E61+0.5)-D61,E61-D61)) -> 0 | I61: 5th | J61: 11:40:00 | K61: 01:05:00 | L61: 0 | M61: =COUNTIF(N59,">"&"00") -> 0 | N61: =IF(OR(I61="Lunch",I61="Recess",AND(L61=1,M61=1,I61="Passing")), 0, IF(J61>K61,(K61+0.5)-J61,K61-J61)) -> 0.05902777778 | R61: 0 | S61: =COUNTIF(T59,">"&"00") -> 0 | T61: =IF(OR(O61="Lunch",O61="Recess",AND(R61=1,S61=1,O61="Passing")), 0, IF(P61>Q61,(Q61+0.5)-P61,Q61-P61)) -> 0 | U61: 5th | V61: 11:40:00 | W61: 01:05:00 | X61: 0 | Y61: =COUNTIF(Z59,">"&"00") -> 0 | Z61: =IF(OR(U61="Lunch",U61="Recess",AND(X61=1,Y61=1,U61="Passing")), 0, IF(V61>W61,(W61+0.5)-V61,W61-V61)) -> 0.05902777778 | AD61: 0 | AE61: =COUNTIF(AF59,">"&"00") -> 0 | AF61: =IF(OR(AA61="Lunch",AA61="Recess",AND(AD61=1,AE61=1,AA61="Passing")), 0, IF(AB61>AC61,(AC61+0.5)-AB61,AC61-AB61)) -> 0 | AH61: 0.02986111111
F62: 0 | G62: 1 | H62: 0 | I62: passing | J62: 01:05:00 | K62: 01:15:00 | L62: 0 | M62: 0 | N62: 0.006944444444 | R62: 0 | S62: 1 | T62: 0 | U62: passing | V62: 01:05:00 | W62: 01:15:00 | X62: 0 | Y62: 0 | Z62: 0.006944444444 | AD62: 0 | AE62: 1 | AF62: 0 | AH62: 0.003472222222
C63: 6th period | D63: 10:55:00 | E63: 11:40:00 | F63: 0 | G63: 0 | H63: 0.03125 | L63: 0 | M63: 1 | N63: 0 | O63: 6th period | P63: 10:55:00 | Q63: 11:40:00 | R63: 0 | S63: 0 | T63: 0.03125 | X63: 0 | Y63: 1 | Z63: 0 | AA63: 6th period | AB63: 10:55:00 | AC63: 11:40:00 | AD63: 0 | AE63: 0 | AF63: 0.03125 | AH63: 0.01597222222 | AJ63: 6th period | AM63: 6
C64: passing | D64: 11:40:00 | E64: 11:45:00 | F64: 0 | G64: 0 | H64: 0.003472222222 | L64: 0 | M64: 1 | N64: 0 | O64: passing | P64: 11:40:00 | Q64: 11:45:00 | R64: 0 | S64: 0 | T64: 0.003472222222 | X64: 0 | Y64: 1 | Z64: 0 | AA64: passing | AB64: 11:40:00 | AC64: 11:45:00 | AD64: 0 | AE64: 0 | AF64: 0.003472222222 | AH64: 0.001388888889
F65: 0 | G65: 1 | H65: 0 | I65: 7th period | J65: 01:15:00 | K65: 02:40:00 | L65: 0 | M65: 0 | N65: 0.05902777778 | R65: 0 | S65: 1 | T65: 0 | U65: 7th period | V65: 01:15:00 | W65: 02:40:00 | X65: 0 | Y65: 0 | Z65: 0.05902777778 | AD65: 0 | AE65: 1 | AF65: 0 | AH65: 0.02986111111 | AJ65: 0 | AM65: 0
F66: 0 | G66: 1 | H66: 0 | I66: passing | J66: 02:40:00 | K66: 02:50:00 | L66: 0 | M66: 0 | N66: 0.006944444444 | R66: 0 | S66: 1 | T66: 0 | U66: passing | V66: 02:40:00 | W66: 02:50:00 | X66: 0 | Y66: 0 | Z66: 0.006944444444 | AD66: 0 | AE66: 1 | AF66: 0 | AH66: 0.003472222222
C67: 8th period | D67: 01:15:00 | E67: 02:40:00 | F67: 0 | G67: 0 | H67: 0.05902777778 | L67: 0 | M67: 1 | N67: 0 | O67: 8th period | P67: 01:15:00 | Q67: 02:40:00 | R67: 0 | S67: 0 | T67: 0.05902777778 | X67: 0 | Y67: 1 | Z67: 0 | AA67: 8th period | AB67: 01:15:00 | AC67: 02:40:00 | AD67: 0 | AE67: 0 | AF67: 0.05902777778 | AH67: 0.02986111111 | AJ67: 8th period | AM67: 8
C68: passing | D68: 02:40:00 | E68: 02:50:00 | F68: 0 | G68: 0 | H68: 0.006944444444 | L68: 0 | M68: 1 | N68: 0 | O68: passing | P68: 02:40:00 | Q68: 02:50:00 | R68: 0 | S68: 0 | T68: 0.006944444444 | X68: 0 | Y68: 1 | Z68: 0 | AA68: passing | AB68: 02:40:00 | AC68: 02:50:00 | AD68: 0 | AE68: 0 | AF68: 0.006944444444 | AH68: 0.003472222222
F69: 0 | G69: 1 | H69: 0 | I69: 9th period | J69: 02:50:00 | K69: 03:30:00 | L69: 0 | M69: 0 | N69: 0.02777777778 | R69: 0 | S69: 1 | T69: 0 | U69: 9th period | V69: 02:50:00 | W69: 03:30:00 | X69: 0 | Y69: 0 | Z69: 0.02777777778 | AD69: 0 | AE69: 1 | AF69: 0 | AH69: 0.01388888889 | AJ69: 0 | AM69: 0
F70: 0 | G70: 1 | H70: 0 | L70: 0 | M70: 0 | N70: 0 | R70: 0 | S70: 1 | T70: 0 | X70: 0 | Y70: 0 | Z70: 0 | AD70: 0 | AE70: 1 | AF70: 0 | AH70: 0
C71: 10th period | D71: 02:50:00 | E71: 03:30:00 | F71: 0 | G71: 0 | H71: 0.02777777778 | L71: 0 | M71: 1 | N71: 0 | O71: 10th period | P71: 02:50:00 | Q71: 03:30:00 | R71: 0 | S71: 0 | T71: 0.02777777778 | X71: 0 | Y71: 1 | Z71: 0 | AA71: 10th period | AB71: 02:50:00 | AC71: 03:30:00 | AD71: 0 | AE71: 0 | AF71: 0.02777777778 | AH71: 0.01388888889 | AJ71: 10th period | AM71: 1
F72: 0 | G72: 0 | H72: 0 | L72: 0 | M72: 0 | N72: 0 | R72: 0 | S72: 0 | T72: 0 | X72: 0 | Y72: 0 | Z72: 0 | AD72: 0 | AE72: 0 | AF72: 0 | AH72: 0
F73: 0 | G73: 1 | H73: 0 | L73: 0 | M73: 0 | N73: 0 | R73: 0 | S73: 1 | T73: 0 | X73: 0 | Y73: 0 | Z73: 0 | AD73: 0 | AE73: 1 | AF73: 0 | AH73: 0
E76: Total Minutes | H76: =SUM(H51:H75) -> 0.2638888889 | K76: Total Minutes | N76: =SUM(N51:N75) -> 0.2916666667 | Q76: Total Minutes | T76: =SUM(T51:T75) -> 0.2638888889 | W76: Total Minutes | Z76: =SUM(Z51:Z75) -> 0.2916666667 | AC76: Total Minutes | AF76: =SUM(AF51:AF75) -> 0.2638888889 | AH76: =ROUND(((H45+N45+T45+Z45+AF45+H76+N76+T76+Z76+AF76)/10)*1440,0)/1440 -> 0.2777777778
A84: Bell Schedule Calculator Updated 6/10/20 Kansas leads the world in the success of each student.

Sheet Formulas (hidden)
A1: Cell | B1: F8
A2: Heading | B2: none
A3: Formula | B3: =COUNTIF(C7,"="&"Lunch")
A4: Translation | B4: Places a 1 in cell if the word Lunch is in C7 (Type of Time, row above).
A6: Cell | B6: G8
A7: Heading | B7: Mins
A8: Formula | B8: =IF(OR(C8="Lunch",C8="Recess",AND(F8=1,C8="Passing")), 0, IF(D8>E8,(E8+0.5)-D8,E8-D8))
A9: Translation | B9: If there is a 1 in F8 and the word Passing in C8 (Type), don't count the time. If the words Lunch or Recess are in C8 (Type), don't count the time. If not, then count the time. If beg time is greater than end time, then (end time + .5) minus beg time If not, then end time minus beg time.
A11: Cell | B11: G33
A12: Heading | B12: Total Mins
A13: Formula | B13: =SUM(G8:G32)
A14: Translation | B14: Adds up all time
A16: Cell | B16: AC8
A17: Heading | B17: Daily Average
A18: Formula | B18: =ROUND(((G8+L8+Q8+V8+AA8+G57+L57+Q57+V57+AA57)/10)*1440,0)/1440
A19: Translation | B19: Adds up all times in first rows of both tables (the formula sees decimals) and divides by 10 for average which is rounded. Excel stores time as a decimal portion of a day. Dividing the totaled decimals by 1440 converts to actual minutes. 1440 is the number of minutes in a day.
A21: Cell | B21: AC33
A22: Heading | B22: total of daily average column
A23: Formula | B23: =ROUND((SUM(G33:AA33)+SUM(G82:AA82))/10*1440,0)/1440
A24: Translation | B24: Adds up total minutes row for both columns, divides by 10 to average, converts to actual minutes, then rounds.
A26: Cell | B26: AD8
A27: Heading | B27: Contact Minutes
A28: Formula | B28: =IF(OR(ISNUMBER(SEARCH("*Period*",C8)),ISNUMBER(SEARCH("*Period*",H8)),ISNUMBER(SEARCH("*Period*",M8)),ISNUMBER(SEARCH("*Period*",R8)),ISNUMBER(SEARCH("*Period*",W8))),AC8,0)
A29: Translation | B29: Looks for the word period in Type columns of both tables and returns a zero if it finds it. If it doesn't find the word period, then returns the result in AC8.
A31: Cell | B31: AD33
A32: Heading | B32: total of Contact Minutes column
A33: Formula | B33: =SUM(AD8:AD30)
A34: Translation | B34: adds up all contact minutes
A36: Cell | B36: AE8
A37: Heading | B37: P-test
A38: Formula | B38: =IF(OR(ISNUMBER(SEARCH("*Period*",C8)),ISNUMBER(SEARCH("*Period*",H8)),ISNUMBER(SEARCH("*Period*",M8)),ISNUMBER(SEARCH("*Period*",R8)),ISNUMBER(SEARCH("*Period*",W8))),INDIRECT("R"&TEXT(MIN(IF(COUNTIF(C8:W8,C8:W8)=MAX(COUNTIF(C8:W8,C8:W8)),ROW(C8:W8)*1000+COLUMN(C8:W8))),"0\C000"),0),"")
A39: Translation | B39: Looks for the word Period in Type columns of both tables. Not sure what happens after that.
A41: Cell | B41: AF8
A42: Heading | B42: Period
A43: Formula | B43: =IF(AE8=0, AE57,AE8)
A44: Translation
A46: Cell | B46: AG8
A47: Heading | B47: Seq
A48: Formula | B48: =IF(AH8=0,"",(MAX(AG$7:AG7)+1)*1)
A49: Translation
A51: Cell | B51: AH8
A52: Heading | B52: P Num
A53: Formula | B53: =IF(AF8="",0,REPLACE(AF8,SEARCH(" ",AF8,1),7,""))
A54: Translation
A56: Cell | B56: AI8
A57: Heading | B57: Contact
A58: Formula | B58: =AD8
A59: Translation
A61: Cell | B61: AJ8
A62: Heading | B62: Seminar
A63: Formula | B63: =IF(OR(ISNUMBER(SEARCH("*Seminar*",C8)),ISNUMBER(SEARCH("*Seminar*",H8)),ISNUMBER(SEARCH("*Seminar*",M8)),ISNUMBER(SEARCH("*Seminar*",R8)),ISNUMBER(SEARCH("*Seminar*",W8))),AC8,0)
A64: Translation
A66: Cell | B66: AJ33
A67: Heading | B67: toal of seminar minutes column
A68: Formula | B68: =SUM(AJ8:AJ30)
A69: Translation
A71: Cell | B71: L36
A72: Heading | B72: Total Minutes per Day
A73: Formula | B73: =ROUND((SUM(G82:AA82)+SUM(G33:AA33))/10*1440,0)/1440
A74: Translation

Sheet Sheet2 (hidden)
D2: 1G | E2: =IFERROR(INDEX($D$2:$D$20,SMALL(INDEX(NOT(ISBLANK($D$2:$D$20))*ROW($D$2:$D$20),0),COUNTBLANK($D$2:$D$20))),"") -> 
B3: =IFERROR(INDEX($A$2:$A$40,SMALL(IF(LEN($A$2:$A$40)>0,ROW($A$2:$A$40)-ROW($E$1)),ROW(1:1)),1),"") -> 0 | E3: 1G
B4: =IFERROR(INDEX($A$2:$A$40,SMALL(IF(LEN($A$2:$A$40)>0,ROW($A$2:$A$40)-ROW($E$1)),ROW(2:2)),1),"") ->  | D4: 1R
E5: 1R
D6: 2G
E7: 2G
D8: 2R
E9: 2R
D12: 3G
E13: 3G
D14: 3R
E15: 3R
D16: 4G
E17: 4G
D18: 4R
E19: 4R
E20: =IFERROR(INDEX($D$2:$D$20,SMALL(INDEX(NOT(ISBLANK($D$2:$D$20))*ROW($D$2:$D$20),0),COUNTBLANK($D$2:$D$20))),"") -> 
E21: =IFERROR(INDEX($D$2:$D$20,SMALL(INDEX(NOT(ISBLANK($D$2:$D$20))*ROW($D$2:$D$20),0),COUNTBLANK($D$2:$D$20))),"") -> 
E22: =IFERROR(INDEX($D$2:$D$20,SMALL(INDEX(NOT(ISBLANK($D$2:$D$20))*ROW($D$2:$D$20),0),COUNTBLANK($D$2:$D$20))),"") -> 
E23: =IFERROR(INDEX($D$2:$D$20,SMALL(INDEX(NOT(ISBLANK($D$2:$D$20))*ROW($D$2:$D$20),0),COUNTBLANK($D$2:$D$20))),"") -> 
E24: =IFERROR(INDEX($D$2:$D$20,SMALL(INDEX(NOT(ISBLANK($D$2:$D$20))*ROW($D$2:$D$20),0),COUNTBLANK($D$2:$D$20))),"") -> 
